Workbook

Sheet Introduction
A3: . . . . . . . . . . . . . . . . . . . . . . . . . . . . . . . . . . . . . . . . . . . . . . . . . . . . . . . . . .
A5: Guidelines For Estimating
A6: Beef Backgrounding Costs
A7: ="For Weight Range of "&Input!D14&" - "&Input!D16&" lbs" -> For Weight Range of 500 - 900 lbs
A8: ="Based on "&Input!D12&" Head" -> Based on 500 Head
H11: Date: | J11: September, 2023
B15: This guide is designed to provide you with planning information and a format for calculating costs of production of a backgrounding feeder calf enterprise in Manitoba. General Manitoba Agriculture recommendations are assumed in using feed and veterinary inputs. These figures provide an economic evaluation of the livestock and estimated prices required to cover all costs. Costs include labour, investment and depreciation, but do not include management costs, nor do they necessarily represent the average cost of production in Manitoba.
B22: Backgrounding generally refers to the feeding of calves from weaning until they are put onto a high concentrate finishing ration. An example of a typical backgrounding operation would be, feed 500 pound steers to gain 1.5 to 2.5 pounds per day for approximately 100-200 days to produce 800 to 900 pound backgrounded feeders.
B28: These budgets may be adjusted by putting in your own figures. As a producer you are encouraged to calculate your own costs of production. Good management is assumed in that a balanced ration is being fed, livestock are on a herd health program and handling facilities are included.
B34: This tool is available as an Excel worksheet at:
B42: is also available to help
B43: determine machinery costs.
B45: Note: This budget is only a guide and is not intended as an in-depth study of the cost of production of this industry. Interpretation and use of this information is the responsibility of the user. If you need help with a budget, contact a Farm Management Specialist.

Sheet Summary
A1: ="Backgrounding Cattle Production Cost Summary - "&Introduction!J11 -> Backgrounding Cattle Production Cost Summary - September, 2023
A2: ="Based on "&Input!D12&" feeders, weight range "&Input!D14&" to "&Input!D16&" lbs, "&Input!C24&" ration @ "&Input!D23&" lbs. ADG" -> Based on 500 feeders, weight range 500 to 900 lbs, Corn Silage ration @ 2.5 lbs. ADG
A4: A. Operating Costs | F4: Cost/Head | H4: Total Cost | J4: Your Cost
A5: 1. Feed Costs
A6: =" 1.01 "&Input!A43&" ("&Input!E43*100&" % TDN, "&Input!G43*100&" % CP)" -> 1.01 Alfalfa Grass Hay (57.8 % TDN, 13.7 % CP) | F6: =Details!F18 -> 48 | H6: =IF(Input!$C$24="Barley Silage",'Feed Rations'!$L9,IF(Input!$C$24="Corn Silage",'Feed Rations'!L27,'Feed Rations'!L45)) -> 24000
A7: =" 1.02 "&Input!A44&" ("&Input!E44*100&" % TDN, "&Input!G44*100&" % CP)" -> 1.02 Corn Silage (65.2 % TDN, 8.7 % CP) | F7: =Details!F23 -> 91.77 | H7: =IF(Input!$C$24="Barley Silage",'Feed Rations'!$L10,IF(Input!$C$24="Corn Silage",'Feed Rations'!L28,'Feed Rations'!L46)) -> 44910
A8: =" 1.03 "&Input!A45&" ("&Input!E45*100&" % TDN, "&Input!G45*100&" % CP)" -> 1.03 Barley Silage (63 % TDN, 11 % CP) | F8: =Details!F28 -> 0 | H8: =IF(Input!$C$24="Barley Silage",'Feed Rations'!$L11,IF(Input!$C$24="Corn Silage",'Feed Rations'!L29,'Feed Rations'!L47)) -> 0
A9: =" 1.04 "&Input!A46&" ("&Input!E46*100&" % TDN, "&Input!G46*100&" % CP)" -> 1.04 Barley Grain (83.1 % TDN, 12.5 % CP) | F9: =Details!F33 -> 106.6 | H9: =IF(Input!$C$24="Barley Silage",'Feed Rations'!$L12,IF(Input!$C$24="Corn Silage",'Feed Rations'!L30,'Feed Rations'!L48)) -> 53387.5
A10: =" 1.05 "&Input!A47 -> 1.05 Greenfeed | F10: =Details!F38 -> 0 | H10: =IF(Input!$C$24="Barley Silage",'Feed Rations'!$L13,IF(Input!$C$24="Corn Silage",'Feed Rations'!L31,'Feed Rations'!L49)) -> 0
A11: =" 1.06 "&Input!A48 -> 1.06 Straw | F11: =Details!F43 -> 0 | H11: =IF(Input!$C$24="Barley Silage",'Feed Rations'!$L14,IF(Input!$C$24="Corn Silage",'Feed Rations'!L32,'Feed Rations'!L50)) -> 0
A12: =" 1.07 "&Input!A49&" ("&ROUND(Input!E49*100,1)&"%TDN, "&Input!G49*100&"%CP)" -> 1.07 32-20% Feedlot Suppl. (61.7%TDN, 35.6%CP) | F12: =Details!F48 -> 0 | H12: =IF(Input!$C$24="Barley Silage",'Feed Rations'!$L15,IF(Input!$C$24="Corn Silage",'Feed Rations'!L33,'Feed Rations'!L51)) -> 0
A13: =" 1.08 "&Input!A50&" ("&Input!E50*100&" % TDN, "&Input!G50*100&" % CP)" -> 1.08 DDGS Corn/Wheat (77 % TDN, 33.9 % CP) | F13: =Details!F53 -> 20.67 | H13: =IF(Input!$C$24="Barley Silage",'Feed Rations'!$L16,IF(Input!$C$24="Corn Silage",'Feed Rations'!L34,'Feed Rations'!L52)) -> 10500
A14: =" 1.09 "&Input!A51 -> 1.09 1:1 Premix | F14: =Details!F58 -> 0 | H14: =IF(Input!$C$24="Barley Silage",'Feed Rations'!$L17,IF(Input!$C$24="Corn Silage",'Feed Rations'!L35,'Feed Rations'!L53)) -> 0
A15: =" 1.10 "&Input!A52 -> 1.10 2:1 Premix | F15: =Details!F63 -> 40.91 | H15: =IF(Input!$C$24="Barley Silage",'Feed Rations'!$L18,IF(Input!$C$24="Corn Silage",'Feed Rations'!L36,'Feed Rations'!L54)) -> 20500
A16: =" 1.11 "&Input!A53 -> 1.11 Limestone | F16: =Details!F68 -> 5.1 | H16: =IF(Input!$C$24="Barley Silage",'Feed Rations'!$L19,IF(Input!$C$24="Corn Silage",'Feed Rations'!L37,'Feed Rations'!L55)) -> 2560
A17: =" 1.12 "&Input!A54 -> 1.12 Other | F17: =Details!F73 -> 0 | H17: =IF(Input!$C$24="Barley Silage",'Feed Rations'!$L20,IF(Input!$C$24="Corn Silage",'Feed Rations'!L38,'Feed Rations'!L56)) -> 0
A18: Total Feed Costs | F18: =SUM(F6:F16) -> 313.05 | H18: =SUM(H6:H16) -> 155857.5
A19: 2. Other Operating Costs
A20: 2.01 Feeder Cost | F20: =Details!F90 -> 1965.25 | H20: =ROUND(F20*Input!$D$12,0) -> 982625
A21: 2.02 Straw | F21: =Details!F96 -> 22.4 | H21: =ROUND(F21*Input!$D$12,0) -> 11200
A22: 2.03 Veterinary Medicine & Supplies | F22: =Details!F122 -> 25.76 | H22: =ROUND(F22*Input!$D$12,0) -> 12880
A23: 2.04 Annual Fuel & Repair Costs | F23: =Details!F148 -> 10.82688 | H23: =ROUND(F23*Input!$D$12,0) -> 5413
A24: 2.05 Utilities | F24: =Details!F153 -> 3.39 | H24: =ROUND(F24*Input!$D$12,0) -> 1695
A25: 2.06 Feeder Selling Cost | F25: =Details!F170 -> 34.95 | H25: =ROUND(F25*Input!$D$12,0) -> 17475
A26: 2.07 Insurance | F26: =Details!F189 -> 1.64 | H26: =ROUND(F26*Input!$D$12,0) -> 820
A27: 2.08 Manure Removal | F27: =Details!F198 -> 18.83448 | H27: =ROUND(F27*Input!$D$12,0) -> 9417
A28: 2.09 Barn & Office Supplies | F28: =Details!F203 -> 1.2 | H28: =ROUND(F28*Input!$D$12,0) -> 600
A29: 2.10 Death Loss | F29: =Details!F211 -> 43.28 | H29: =ROUND(F29*Input!$D$12,0) -> 21640
A30: Subtotal Operating Costs | F30: =ROUND(SUM(F18:F29),2) -> 2440.58 | H30: =SUM(H18:H29) -> 1219622.5
A31: 2.11 Operating Interest | F31: =Details!F221 -> 86.91 | H31: =ROUND(F31*Input!$D$12,0) -> 43455
A32: Total Operating Costs | F32: =F30+F31 -> 2527.49 | H32: =H30+H31 -> 1263077.5
A33: B. Fixed Costs
A34: 3. Depreciation
A35: 3.01 Buildings | F35: =Details!F254 -> 7.21 | H35: =F35*Input!D12 -> 3605
A36: 3.02 Machinery & Equipment | F36: =Details!F261 -> 18 | H36: =F36*Input!D12 -> 9000
A37: 4. Investment
A38: 4.01 Buildings | F38: =Details!F271 -> 3.52 | H38: =F38*Input!D12 -> 1760
A39: 4.02 Machinery & Equipment | F39: =Details!F279 -> 5.4 | H39: =F39*Input!D12 -> 2700
A40: Total Fixed Costs | F40: =SUM(F35:F39) -> 34.13 | H40: =F40*Input!D12 -> 17065
A41: Total Operating and Fixed Costs | F41: =SUM(F32+F40) -> 2561.62 | H41: =H32+H40 -> 1280142.5
A43: C. Owners - Labour & Living | F43: =Details!F284 -> 27 | H43: =F43*Input!D12 -> 13500
A44: Total Cost of Production | F44: =F41+F43 -> 2588.62 | H44: =H41+H43 -> 1293642.5
D46: Profitability and Breakeven Analysis
A48: Estimated Farmgate | F48: Per Head | H48: Total
A49: =" Gross Revenue @ $"&Input!D17&"/cwt market price" -> Gross Revenue @ $330/cwt market price | F49: =Breakeven!F48 -> 2880.9 | H49: =ROUND(F49*Input!D12,0) -> 1440450
F52: Breakeven Purchase | H52: Breakeven Selling
F53: Price ($/cwt) @ | H53: Price ($/cwt) @
F54: ="$"&Input!D17&"/cwt market price" -> $330/cwt market price | H54: ="$"&Input!D15&"/cwt feeder price" -> $390/cwt feeder price
A55: Operating Costs | F55: =Breakeven!F51*100 -> 460.682 | H55: =Breakeven!F31*100 -> 289.5177549
A56: Operating Costs & Labour | F56: =Breakeven!F58*100 -> 455.282 | H56: =Breakeven!F35*100 -> 292.6105384
A57: Operating & Fixed Costs | F57: =Breakeven!F65*100 -> 453.856 | H57: =Breakeven!F39*100 -> 293.4272623
A58: Total Costs | F58: =Breakeven!F72*100 -> 448.456 | H58: =Breakeven!F43*100 -> 296.5200458
F60: Cost per lb of | H60: Marginal Returns per head
F61: gain sold ($/cwt) | H61: ="@ $"&Input!D17&"/cwt market price" -> @ $330/cwt market price
A62: Feed Costs | F62: =Breakeven!F7*100 -> 83.92761394 | H62: =F49-F20-F18 -> 602.6
A63: Operating Costs | F63: =Breakeven!F12*100 -> 154.8230563 | H63: =Breakeven!F48-F32 -> 353.41
A64: Operating Costs & Labour | F64: =Breakeven!F17*100 -> 162.0616622 | H64: =Breakeven!F55-(F32+F43) -> 326.41
A65: Operating & Fixed Costs | F65: =Breakeven!F22*100 -> 163.9731903 | H65: =Breakeven!F62-(F32+F40) -> 319.28
A66: Total Costs | F66: =Breakeven!F27*100 -> 171.2117962 | H66: =Breakeven!F69-F44 -> 292.28
A68: Return on Investment (ROI) | F68: =(F49-F44)/F44 -> 0.1129095812
A69: Estimated Return on Asset (ROA) | F69: =((F49-F32-F43-F35-F36)/(Input!D156/Input!D12)) -> 0.7819314642
A71: Note: This budget is only a guide and is not intended as an in-depth study of the cost of production of this industry. Interpretation and utilization of this information is the responsibility of the user. No liability for decisions based on this publication is assumed.

Sheet Risk Analysis
A1: Risk & Sensitivity Analysis (Stress Test)
A2: A. Operating Costs | E2: ***HIDE***
B3: Feed cost | C3: =Summary!F18 -> 313.05
B4: Feeder Cost | C4: =Summary!F20 -> 1965.25
B5: Other Operating Costs | C5: =SUM(Summary!F32-Summary!F20-Summary!F18) -> 249.19
B6: Subtotal | C6: =SUM(C3:C5) -> 2527.49
A7: B. Fixed Costs | C7: =Summary!F40 -> 34.13
A8: C. Labour | C8: =Summary!F43 -> 27
A9: Total Costs | C9: =SUM(C6:C8) -> 2588.62
A11: Estimated Farmgate
B12: Price ($ per cwt) | C12: =Input!D17 -> 330
B15: Percent Market Price Change | C15: -0.1
B16: Percent Feed Cost Change | C16: 0.05
B17: Percent Feeder Cost Change | C17: 0.05
C20: Per Head
B21: Market Price ($ per cwt) | C21: =SUM(C12*(1+C15)) -> 297
B22: Feed Cost | C22: =SUM(C3+(C3*C16)) -> 328.7025
B23: Feeder Cost | C23: =SUM(C4+(C4*C17)) -> 2063.5125
A25: ="Stress Test Scenario = Market Price "&IF(C15<0,"Down","Up")&" "&ABS(C15*100)&"%, Feed Price "&IF(C16<0,"Down","Up")&" "&ABS(C16*100)&"% and Feeder Cost "&IF(C17<0,"Down","Up")&" "&ABS(C17*100)&"%" -> Stress Test Scenario = Market Price Down 10%, Feed Price Up 5% and Feeder Cost Up 5%
B26: Operating Costs | C26: =SUM(C5+C22+C23) -> 2641.405
B27: Total Costs | C27: =C7+C8+C26 -> 2702.535
B28: Gross Revenue / feeder | C28: =(Breakeven!F46/100)*'Risk Analysis'!C21 -> 2592.81
B29: Marginal Returns
B30: Over Operating Costs | C30: =SUM(C28-C26) -> -48.595
B31: Over Operating & Labour Costs | C31: =SUM(C28-C26-C8) -> -75.595
B32: Over Total Costs (Net Profit) | C32: =SUM(C28-C27) -> -109.725
B34: Operating Expense Ratio | C34: =SUM(C26/C28) -> 1.018742214
A36: Estimated Breakeven Canadian Dollar Analysis
C38: ="Est. Market Price ($/cwt Cdn) @ "&TEXT(Input!D18,"0.0000")&" Cdn per USD" -> Est. Market Price ($/cwt Cdn) @ 0.7500 Cdn per USD
C39: =SUM($E$39-10) -> 320 | D39: =SUM($E$39-5) -> 325 | E39: =Input!D17 -> 330 | F39: =SUM($E$39+5) -> 335 | G39: =SUM($E$39+10) -> 340
A40: Breakeven CDN Dollar ($1 Cdn = $ USD)
B41: Operating Costs | C41: =SUM((C39/100)*Breakeven!$F$46*Input!$D$18)/Summary!$F$32 -> 0.8289647041 | D41: =SUM((D39/100)*Breakeven!$F$46*Input!$D$18)/Summary!$F$32 -> 0.8419172776 | E41: =SUM((E39/100)*Breakeven!$F$46*Input!$D$18)/Summary!$F$32 -> 0.8548698511 | F41: =SUM((F39/100)*Breakeven!$F$46*Input!$D$18)/Summary!$F$32 -> 0.8678224246 | G41: =SUM((G39/100)*Breakeven!$F$46*Input!$D$18)/Summary!$F$32 -> 0.8807749981
B42: Operating & Labour Costs | C42: =SUM((C39/100)*Breakeven!$F$46*Input!$D$18)/(Summary!$F$32+Summary!$F$43) -> 0.8202028585 | D42: =SUM((D39/100)*Breakeven!$F$46*Input!$D$18)/(Summary!$F$32+Summary!$F$43) -> 0.8330185282 | E42: =SUM((E39/100)*Breakeven!$F$46*Input!$D$18)/(Summary!$F$32+Summary!$F$43) -> 0.8458341978 | F42: =SUM((F39/100)*Breakeven!$F$46*Input!$D$18)/(Summary!$F$32+Summary!$F$43) -> 0.8586498675 | G42: =SUM((G39/100)*Breakeven!$F$46*Input!$D$18)/(Summary!$F$32+Summary!$F$43) -> 0.8714655372
B43: Operating, Fixed & Labour Costs | C43: =SUM((C39/100)*Breakeven!$F$46*Input!$D$18)/Summary!$F$44 -> 0.8093887863 | D43: =SUM((D39/100)*Breakeven!$F$46*Input!$D$18)/Summary!$F$44 -> 0.8220354861 | E43: =SUM((E39/100)*Breakeven!$F$46*Input!$D$18)/Summary!$F$44 -> 0.8346821859 | F43: =SUM((F39/100)*Breakeven!$F$46*Input!$D$18)/Summary!$F$44 -> 0.8473288857 | G43: =SUM((G39/100)*Breakeven!$F$46*Input!$D$18)/Summary!$F$44 -> 0.8599755854
A45: ="Breakeven Canadian Dollar = (Est. Market Price ($/lb) x Shrunk Wt. (lbs) x $ Cdn per USD) / Cost" -> Breakeven Canadian Dollar = (Est. Market Price ($/lb) x Shrunk Wt. (lbs) x $ Cdn per USD) / Cost
A46: =" (eg. ($"&TEXT(E39/100,"0.00")&" x "&ROUND(Breakeven!F46,0)&" lbs x $"&TEXT(Input!D18,"0.0000")&") / $"&TEXT(Summary!F44,"0.00")&") = $"&TEXT(E43,"0.0000") -> (eg. ($3.30 x 873 lbs x $0.7500) / $2588.62) = $0.8347
A48: Note: This budget is only a guide and is not intended as an in depth study of the cost of production of this industry. Interpretation and utilization of this information is the responsibility of the user.

Sheet Charts

Sheet Input
A1: Backgrounding Feeder Cattle Production Costs | J1: HIDE
A3: Assumptions
A4: 1. This budget outlines the cost of production for backgrounding cattle.
A5: 2. Buildings and equipment are valued at new cost.
A6: 3. All feed is purchased.
A10: Herd Profile
A12: Number of Feeders Purchased | D12: 500 | E12: head
A13: Feeder Cattle Mortality Rate | D13: 2 | E13: %
A14: Feeder Purchased Weight | D14: 500 | E14: lbs
A15: Feeder Cattle Price | D15: 390 | E15: /cwt
A16: Finish Weight (Maximum 900 lbs.) | D16: 900 | E16: lbs
A17: Feeder Selling Price (WLPIP insured value) | D17: 330 | E17: /cwt
A18: $1 Canadian Dollar | C18: ="($"&TEXT(1/D18,"#.####")&" CDN )" -> ($1.3333 CDN ) | D18: 0.75 | E18: / $1 USD
A19: WLPIP Insurance Premium | D19: 0 | E19: /cwt
A20: Percent Shrink at Sale | D20: 3 | E20: %
A21: Percent Shrink Feeder | D21: 0 | E21: % | G21: ****HIDE****
A23: Average Daily Gain | D23: 2.5 | E23: lbs/day | J23: ='Ration Data'!C2 -> 1.5 | K23: ='Ration Data'!K2 -> 2 | L23: ='Ration Data'!S2 -> 2.5
A24: Type of Feed Ration | C24: Corn Silage | J24: Barley Silage | K24: Corn Silage | L24: Alfalfa Grass Hay
D26: Feed Cost
A27: Weight Range | B27: Days on Feed | D27: $/Steer/Day
A28: 500 to 600 lbs. | B28: =ROUND(IF(SUM((600-D14))<=0,0,IF(D16<=600,SUM((D16-D14)/D23),SUM(600-D14)/D23)),0) -> 40 | D28: =IF(B28>0,IF(Input!$C$24="Barley Silage",'Feed Rations'!E$21,IF(Input!$C$24="Corn Silage",'Feed Rations'!E$39,'Feed Rations'!E$57)),0) -> 1.66691
A29: 600 to 700 lbs. | B29: =ROUND(IF(D16<600,0,IF(SUM(700-D14)<=0,0,IF(D14>=600,IF(D16>=700,SUM((700-D14)/D23),SUM(D16-D14)/D23),IF(D16>=700,SUM(100/D23),SUM(D16-600)/D23)))),0) -> 40 | D29: =IF(B29>0,IF(Input!$C$24="Barley Silage",'Feed Rations'!F$21,IF(Input!$C$24="Corn Silage",'Feed Rations'!F$39,'Feed Rations'!F$57)),0) -> 1.90228
A30: 700 to 800 lbs. | B30: =ROUND(IF(D16<700,0,IF(SUM(800-D14)<=0,0,IF(D14>=700,IF(D16>=800,SUM((800-D14)/D23),SUM(D16-D14)/D23),IF(D16>=800,SUM(100/D23),SUM(D16-700)/D23)))),0) -> 40 | D30: =IF(B30>0,IF(Input!$C$24="Barley Silage",'Feed Rations'!G$21,IF(Input!$C$24="Corn Silage",'Feed Rations'!G$39,'Feed Rations'!G$57)),0) -> 2.047075
A31: 800 to 900 lbs. | B31: =ROUND(IF(D16<800,0,IF(D14>=800,IF(D16>=900,SUM((900-D14)/D23),SUM(D16-D14)/D23),IF(D16>=900,SUM(100/D23),SUM(D16-800)/D23))),0) -> 40 | D31: =IF(B31>0,IF(Input!$C$24="Barley Silage",'Feed Rations'!H$21,IF(Input!$C$24="Corn Silage",'Feed Rations'!H$39,'Feed Rations'!H$57)),0) -> 2.214305
A32: TOTAL | B32: =SUM(B28:B31,0) -> 160
A34: Total Feed Cost per Steer | D34: =IF(B32>0,IF(Input!$C$24="Barley Silage",'Feed Rations'!J21,IF(Input!$C$24="Corn Silage",'Feed Rations'!J39,'Feed Rations'!J57)),0) -> 313.041 | E34: /head
A35: Average Feed Cost per Day | D35: =SUM(D34/B32) -> 1.95650625
A36: Feed Cost per lb. of Gain Sold (shrunk weight) | D36: =(D34/ROUND((Input!$D$16-(Input!$D$16*Input!$D$20/100))-(Input!$D$14-(Input!$D$14*Input!$D$21/100)),0)) -> 0.8392520107
A38: Total Pounds of Gain | D38: =ROUND(D16-D14,0) -> 400 | E38: lbs
A39: Total Pounds of Gain (Shrunk Weight) | D39: =ROUND((Input!$D$16-(Input!$D$16*Input!$D$20/100))-(Input!$D$14-(Input!$D$14*Input!$D$21/100)),0) -> 373 | E39: lbs
E41: (Analysis Assumed)
A42: Feed Costs | B42: $/unit | C42: lbs/Unit | D42: $/lb | E42: TDN | G42: CP
A43: Alfalfa Grass Hay | B43: 120 | C43: 2000 | D43: =ROUND(B43/C43,3) -> 0.06 | E43: 0.578 | G43: 0.137
A44: Corn Silage | B44: 45 | C44: 2000 | D44: =ROUND(B44/C44,3) -> 0.023 | E44: 0.652 | G44: 0.087
A45: Barley Silage | B45: 55 | C45: 2000 | D45: 0.028 | E45: 0.63 | G45: 0.11
A46: Barley Grain | B46: 6.25 | C46: 48 | D46: 0.13 | E46: 0.831 | G46: 0.125
A47: Greenfeed | B47: 120 | C47: 2000 | D47: =ROUND(B47/C47,3) -> 0.06
A48: Straw | B48: 70 | C48: 2000 | D48: =ROUND(B48/C48,3) -> 0.035
A49: 32-20% Feedlot Suppl. | B49: 500 | C49: 2205 | D49: 0.227 | E49: 0.6165 | G49: 0.356
A50: DDGS Corn/Wheat | B50: 350 | C50: 2205 | D50: 0.159 | E50: 0.77 | G50: 0.339
A51: 1:1 Premix | B51: 50 | C51: 55 | D51: 0.909
A52: 2:1 Premix | B52: 50 | C52: 55 | D52: 0.909
A53: Limestone | B53: 20 | C53: 55 | D53: 0.364
A54: Other | B54: 0 | C54: 2000 | D54: =ROUND(B54/C54,3) -> 0
A56: FOOTNOTE: 1 bushel (bu) barley = 48 lbs = 21.8 kg
A57: 1 kilogram (kg) = 2.2046 pounds (lbs)
A58: 1 tonne (t) = 1,000 kg
A60: Other Operating Costs
A62: Feeder Purchase Costs
A63: Buying Commission | D63: 5 | E63: /head
A64: Trucking-in | D64: 1.7 | E64: /cwt
A65: Insurance fee | D65: 1.75 | E65: /head
A67: Straw Bedding
A68: lbs/day | D68: 4 | E68: /head
A69: cost | D69: 70 | E69: /ton
A71: Veterinary Medicine & Supplies
A72: Cattle Medication
A73: IBR,BVD,PI3,BRSV, Pasteurella | D73: 5 | E73: /head
A74: Vitamin A-D | D74: 0.5 | E74: /head
A75: External & Internal Parasites | D75: 0.72 | E75: /head
A76: Blackleg & Haemophilus | D76: 1.26 | E76: /head
A77: Growth Implants | D77: 2 | E77: /head
A78: Antibiotics | D78: 15 | E78: /head
A80: Herd Health Program
A81: Professional Services
A82: Total Yearly Hours | D82: 3 | E82: hours
A83: Rate | D83: 160 | E83: /hour
A84: Transportation
A85: Total Kilometres (round trip) | D85: 80 | E85: km
A86: Rate | D86: 1 | E86: /km
A87: Number of Yearly Visits | D87: 2
A89: Annual Fuel & Repair Costs
A90: a) Machinery Fuel Costs - Winter Feeding
A91: Tractor with Loader PTO hp | D91: 120
A92: Diesel Fuel Cost | D92: 1.4 | E92: /litre
A93: Tractor Hours Per Day (average) | D93: 1.5 | E93: hours
A94: b) Machinery Repair (% of investment cost) | D94: 1.2 | E94: %
A95: c) Building maintenance (% of investment cost) | D95: 2.2 | E95: %
A97: Utilities
A98: Hydro - Rate | D98: 0.09324 | E98: / kWh
A99: 12 | B99: kWh per feeder | D99: =SUM(A99*D12*D98) -> 559.44
A100: 2 | B100: 1000 watt waterer | D100: =SUM(A100*18)*(B32)*D98 -> 537.0624
C101: Total Hydro | D101: =SUM(D99:D100) -> 1096.5024
A102: Telephone | D102: 600
A104: Trucking Cost
A105: Average Weight | D105: =D16 -> 900 | E105: lbs/head
A106: Distance | D106: 75 | E106: miles
A107: Rate | D107: 7 | E107: /loaded mile
A108: Truck Capacity | D108: 54000 | E108: lbs/load
A109: Number of head per load - calves | D109: =D108/D105 -> 60 | E109: per load
A111: Marketing Cost
A112: MBP/NCO Levy $/Head | D112: 5.5 | E112: /head
A113: Commission on Sales | D113: 20 | E113: /head
A114: Market Value | D114: =D17 -> 330 | E114: /cwt
A117: Manure Removal
A118: Manure volume produced | D118: 0.024 | E118: m3/feeder/day
A119: Manure volume shrinkage | D119: 75 | E119: %
A120: Cost for manure removal & application | D120: 15 | E120: /cubic yard
A123: Insurance
A124: Cost per $100 Capital Invested in
A125: a) Livestock | D125: 0 | E125: /$100
A126: b) Building & Equipment | D126: 0.4 | E126: /$100
A127: Additional Coverage for Liability | D127: 49 | E127: /year
A129: Barn & Office Supplies
A130: Total yearly expense relating to barn | D130: 600
A132: Operating Interest Rate | D132: 9 | E132: %
A133: Investment Interest Rate | D133: 4 | E133: %
A135: FOOTNOTE: cwt = hundred-weight = 100 lbs
A137: Capital Costs | D137: Original | E137: Salvage | G137: Useful
D138: Value | E138: Value | G138: Life
A139: Buildings,Corrals & Water System
A140: Windbreak fence | D140: 6300 | E140: 10 | F140: % | G140: 20 | H140: years
A141: Pens | D141: 5300 | E141: 10 | F141: % | G141: 20 | H141: years
A142: Handling Facilities | D142: 7500 | E142: 10 | F142: % | G142: 20 | H142: years
A143: Waterers | D143: 6000 | E143: 10 | F143: % | G143: 20 | H143: years
A144: Gates | D144: 2000 | E144: 10 | F144: % | G144: 20 | H144: years
A145: Feeders | D145: 1500 | E145: 10 | F145: % | G145: 20 | H145: years
A146: Bunk Feeders | D146: 21000 | E146: 10 | F146: % | G146: 20 | H146: years
A147: Well & Pressure System | D147: 8000 | E147: 10 | F147: % | G147: 20 | H147: years
A148: Grain Bin | D148: 5000 | E148: 10 | F148: % | G148: 20 | H148: years
A149: Landscaping | D149: 17500 | E149: 10 | F149: % | G149: 20 | H149: years
A150: Total | D150: =SUM(D140:D149) -> 80100
A152: Machinery & Equipment
A153: =" Tractors & Loader ($"&TEXT(J153,"#,###")&" @ "&K153&"%)" -> Tractors & Loader ($175,000 @ 30%) | D153: =SUM(J153*(K153/100)) -> 52500 | E153: 20 | F153: % | G153: 10 | H153: years | J153: 175000 | K153: 30 | L153: %
A154: Miscellaneous | D154: 60000 | E154: 20 | F154: % | G154: 10 | H154: years
A156: Total Investment | D156: =D150+D153+D154 -> 192600
A158: Labour Costs | E158: Total
A160: Hours/Head | E160: 1 | F160: hours
A161: Labour Rate | E161: 27 | F161: /hour

Sheet Feed Rations
A1: Feed Costs & Requirements Worksheet
A3: ="Total Days on Feed = "&Input!B32&" days @ "&Input!D23&" lbs. Average Daily Gain (ADG) Per Day" -> Total Days on Feed = 160 days @ 2.5 lbs. Average Daily Gain (ADG) Per Day
A5: Barley Silage Ration
A6: Weight Range (lbs) | E6: 500 to 600 | F6: 600 to 700 | G6: 700-800 | H6: 800-900 | I6: Total lbs /steer | J6: Feed Cost $/steer | K6: ="Total Units Required ("&Input!D12&" steers)" -> Total Units Required (500 steers) | L6: ="Total Feed Cost ("&Input!D12&" steers)" -> Total Feed Cost (500 steers)
A7: Days on Feed | E7: =Input!B28 -> 40 | F7: =Input!B29 -> 40 | G7: =Input!B30 -> 40 | H7: =Input!B31 -> 40
A8: Feed Name | B8: $/unit | C8: lbs/Unit | D8: $/lb | E8: As Fed Lbs/Head/Day
A9: =Input!A43 -> Alfalfa Grass Hay | B9: =Input!B43 -> 120 | C9: =Input!C43 -> 2000 | D9: =Input!D43 -> 0.06 | E9: =IF(Input!$D$23=1.5,'Ration Data'!B7,IF(Input!$D$23=2,'Ration Data'!J7,'Ration Data'!R7)) -> 3 | F9: =IF(Input!$D$23=1.5,'Ration Data'!C7,IF(Input!$D$23=2,'Ration Data'!K7,'Ration Data'!S7)) -> 3 | G9: =IF(Input!$D$23=1.5,'Ration Data'!D7,IF(Input!$D$23=2,'Ration Data'!L7,'Ration Data'!T7)) -> 2.5 | H9: =IF(Input!$D$23=1.5,'Ration Data'!E7,IF(Input!$D$23=2,'Ration Data'!M7,'Ration Data'!U7)) -> 2 | I9: =ROUND(($E$7*E9)+($F$7*F9)+($G$7*G9)+($H$7*H9),0) -> 420 | J9: =SUM(I9*D9) -> 25.2 | K9: =ROUNDUP((I9*Input!$D$12)/C9,0) -> 105 | L9: =SUM(K9*B9) -> 12600
A10: =Input!A44 -> Corn Silage | B10: =Input!B44 -> 45 | C10: =Input!C44 -> 2000 | D10: =Input!D44 -> 0.023 | E10: =IF(Input!$D$23=1.5,'Ration Data'!B8,IF(Input!$D$23=2,'Ration Data'!J8,'Ration Data'!R8)) -> 0 | F10: =IF(Input!$D$23=1.5,'Ration Data'!C8,IF(Input!$D$23=2,'Ration Data'!K8,'Ration Data'!S8)) -> 0 | G10: =IF(Input!$D$23=1.5,'Ration Data'!D8,IF(Input!$D$23=2,'Ration Data'!L8,'Ration Data'!T8)) -> 0 | H10: =IF(Input!$D$23=1.5,'Ration Data'!E8,IF(Input!$D$23=2,'Ration Data'!M8,'Ration Data'!U8)) -> 0 | I10: =ROUND(($E$7*E10)+($F$7*F10)+($G$7*G10)+($H$7*H10),0) -> 0 | J10: =SUM(I10*D10) -> 0 | K10: =ROUNDUP((I10*Input!$D$12)/C10,0) -> 0 | L10: =SUM(K10*B10) -> 0
A11: =Input!A45 -> Barley Silage | B11: =Input!B45 -> 55 | C11: =Input!C45 -> 2000 | D11: =Input!D45 -> 0.028 | E11: =IF(Input!$D$23=1.5,'Ration Data'!B9,IF(Input!$D$23=2,'Ration Data'!J9,'Ration Data'!R9)) -> 23 | F11: =IF(Input!$D$23=1.5,'Ration Data'!C9,IF(Input!$D$23=2,'Ration Data'!K9,'Ration Data'!S9)) -> 25.75 | G11: =IF(Input!$D$23=1.5,'Ration Data'!D9,IF(Input!$D$23=2,'Ration Data'!L9,'Ration Data'!T9)) -> 29.25 | H11: =IF(Input!$D$23=1.5,'Ration Data'!E9,IF(Input!$D$23=2,'Ration Data'!M9,'Ration Data'!U9)) -> 32.5 | I11: 4420 | J11: 123.76 | K11: =ROUNDUP((I11*Input!$D$12)/C11,0) -> 1105 | L11: 60775
A12: =Input!A46 -> Barley Grain | B12: =Input!B46 -> 6.25 | C12: =Input!C46 -> 48 | D12: =Input!D46 -> 0.13 | E12: =IF(Input!$D$23=1.5,'Ration Data'!B10,IF(Input!$D$23=2,'Ration Data'!J10,'Ration Data'!R10)) -> 5 | F12: =IF(Input!$D$23=1.5,'Ration Data'!C10,IF(Input!$D$23=2,'Ration Data'!K10,'Ration Data'!S10)) -> 6 | G12: =IF(Input!$D$23=1.5,'Ration Data'!D10,IF(Input!$D$23=2,'Ration Data'!L10,'Ration Data'!T10)) -> 7 | H12: =IF(Input!$D$23=1.5,'Ration Data'!E10,IF(Input!$D$23=2,'Ration Data'!M10,'Ration Data'!U10)) -> 8 | I12: 1040 | J12: 135.2 | K12: =ROUNDUP((I12*Input!$D$12)/C12,0) -> 10834 | L12: 67712.5
A13: =Input!A47 -> Greenfeed | B13: =Input!B47 -> 120 | C13: =Input!C47 -> 2000 | D13: =Input!D47 -> 0.06 | E13: =IF(Input!$D$23=1.5,'Ration Data'!B11,IF(Input!$D$23=2,'Ration Data'!J11,'Ration Data'!R11)) -> 0 | F13: =IF(Input!$D$23=1.5,'Ration Data'!C11,IF(Input!$D$23=2,'Ration Data'!K11,'Ration Data'!S11)) -> 0 | G13: =IF(Input!$D$23=1.5,'Ration Data'!D11,IF(Input!$D$23=2,'Ration Data'!L11,'Ration Data'!T11)) -> 0 | H13: =IF(Input!$D$23=1.5,'Ration Data'!E11,IF(Input!$D$23=2,'Ration Data'!M11,'Ration Data'!U11)) -> 0 | I13: =ROUND(($E$7*E13)+($F$7*F13)+($G$7*G13)+($H$7*H13),0) -> 0 | J13: =SUM(I13*D13) -> 0 | K13: =ROUNDUP((I13*Input!$D$12)/C13,0) -> 0 | L13: =SUM(K13*B13) -> 0
A14: =Input!A48 -> Straw | B14: =Input!B48 -> 70 | C14: =Input!C48 -> 2000 | D14: =Input!D48 -> 0.035 | E14: =IF(Input!$D$23=1.5,'Ration Data'!B12,IF(Input!$D$23=2,'Ration Data'!J12,'Ration Data'!R12)) -> 0 | F14: =IF(Input!$D$23=1.5,'Ration Data'!C12,IF(Input!$D$23=2,'Ration Data'!K12,'Ration Data'!S12)) -> 0 | G14: =IF(Input!$D$23=1.5,'Ration Data'!D12,IF(Input!$D$23=2,'Ration Data'!L12,'Ration Data'!T12)) -> 0 | H14: =IF(Input!$D$23=1.5,'Ration Data'!E12,IF(Input!$D$23=2,'Ration Data'!M12,'Ration Data'!U12)) -> 0 | I14: =ROUND(($E$7*E14)+($F$7*F14)+($G$7*G14)+($H$7*H14),0) -> 0 | J14: =SUM(I14*D14) -> 0 | K14: =ROUNDUP((I14*Input!$D$12)/C14,0) -> 0 | L14: =SUM(K14*B14) -> 0
A15: =Input!A49 -> 32-20% Feedlot Suppl. | B15: =Input!B49 -> 500 | C15: =Input!C49 -> 2205 | D15: =Input!D49 -> 0.227 | E15: =IF(Input!$D$23=1.5,'Ration Data'!B13,IF(Input!$D$23=2,'Ration Data'!J13,'Ration Data'!R13)) -> 0 | F15: =IF(Input!$D$23=1.5,'Ration Data'!C13,IF(Input!$D$23=2,'Ration Data'!K13,'Ration Data'!S13)) -> 0 | G15: =IF(Input!$D$23=1.5,'Ration Data'!D13,IF(Input!$D$23=2,'Ration Data'!L13,'Ration Data'!T13)) -> 0 | H15: =IF(Input!$D$23=1.5,'Ration Data'!E13,IF(Input!$D$23=2,'Ration Data'!M13,'Ration Data'!U13)) -> 0 | I15: 0 | J15: 0 | K15: =ROUNDUP((I15*Input!$D$12)/C15,0) -> 0 | L15: 0
A16: =Input!A50 -> DDGS Corn/Wheat | B16: =Input!B50 -> 350 | C16: =Input!C50 -> 2205 | D16: =Input!D50 -> 0.159 | E16: =IF(Input!$D$23=1.5,'Ration Data'!B14,IF(Input!$D$23=2,'Ration Data'!J14,'Ration Data'!R14)) -> 0 | F16: =IF(Input!$D$23=1.5,'Ration Data'!C14,IF(Input!$D$23=2,'Ration Data'!K14,'Ration Data'!S14)) -> 0 | G16: =IF(Input!$D$23=1.5,'Ration Data'!D14,IF(Input!$D$23=2,'Ration Data'!L14,'Ration Data'!T14)) -> 0 | H16: =IF(Input!$D$23=1.5,'Ration Data'!E14,IF(Input!$D$23=2,'Ration Data'!M14,'Ration Data'!U14)) -> 0 | I16: 0 | J16: 0 | K16: =ROUNDUP((I16*Input!$D$12)/C16,0) -> 0 | L16: 0
A17: =Input!A51 -> 1:1 Premix | B17: =Input!B51 -> 50 | C17: =Input!C51 -> 55 | D17: =Input!D51 -> 0.909 | E17: =IF(Input!$D$23=1.5,'Ration Data'!B15,IF(Input!$D$23=2,'Ration Data'!J15,'Ration Data'!R15)) -> 0.25 | F17: =IF(Input!$D$23=1.5,'Ration Data'!C15,IF(Input!$D$23=2,'Ration Data'!K15,'Ration Data'!S15)) -> 0.27 | G17: =IF(Input!$D$23=1.5,'Ration Data'!D15,IF(Input!$D$23=2,'Ration Data'!L15,'Ration Data'!T15)) -> 0.3 | H17: =IF(Input!$D$23=1.5,'Ration Data'!E15,IF(Input!$D$23=2,'Ration Data'!M15,'Ration Data'!U15)) -> 0.32 | I17: 46 | J17: 41.814 | K17: =ROUNDUP((I17*Input!$D$12)/C17,0) -> 419 | L17: 20950
A18: =Input!A52 -> 2:1 Premix | B18: =Input!B52 -> 50 | C18: =Input!C52 -> 55 | D18: =Input!D52 -> 0.909 | E18: =IF(Input!$D$23=1.5,'Ration Data'!B16,IF(Input!$D$23=2,'Ration Data'!J16,'Ration Data'!R16)) -> 0 | F18: =IF(Input!$D$23=1.5,'Ration Data'!C16,IF(Input!$D$23=2,'Ration Data'!K16,'Ration Data'!S16)) -> 0 | G18: =IF(Input!$D$23=1.5,'Ration Data'!D16,IF(Input!$D$23=2,'Ration Data'!L16,'Ration Data'!T16)) -> 0 | H18: =IF(Input!$D$23=1.5,'Ration Data'!E16,IF(Input!$D$23=2,'Ration Data'!M16,'Ration Data'!U16)) -> 0 | I18: 0 | J18: 0 | K18: =ROUNDUP((I18*Input!$D$12)/C18,0) -> 0 | L18: 0
A19: =Input!A53 -> Limestone | B19: =Input!B53 -> 20 | C19: =Input!C53 -> 55 | D19: =Input!D53 -> 0.364 | E19: =IF(Input!$D$23=1.5,'Ration Data'!B17,IF(Input!$D$23=2,'Ration Data'!J17,'Ration Data'!R17)) -> 0.06 | F19: =IF(Input!$D$23=1.5,'Ration Data'!C17,IF(Input!$D$23=2,'Ration Data'!K17,'Ration Data'!S17)) -> 0.085 | G19: =IF(Input!$D$23=1.5,'Ration Data'!D17,IF(Input!$D$23=2,'Ration Data'!L17,'Ration Data'!T17)) -> 0.11 | H19: =IF(Input!$D$23=1.5,'Ration Data'!E17,IF(Input!$D$23=2,'Ration Data'!M17,'Ration Data'!U17)) -> 0.13 | I19: 15 | J19: 5.46 | K19: =ROUNDUP((I19*Input!$D$12)/C19,0) -> 137 | L19: 2740
A20: =Input!A54 -> Other | B20: =Input!B54 -> 0 | C20: =Input!C54 -> 2000 | D20: =Input!D54 -> 0 | E20: =IF(Input!$D$23=1.5,'Ration Data'!B18,IF(Input!$D$23=2,'Ration Data'!J18,'Ration Data'!R18)) -> 0 | F20: =IF(Input!$D$23=1.5,'Ration Data'!C18,IF(Input!$D$23=2,'Ration Data'!K18,'Ration Data'!S18)) -> 0 | G20: =IF(Input!$D$23=1.5,'Ration Data'!D18,IF(Input!$D$23=2,'Ration Data'!L18,'Ration Data'!T18)) -> 0 | H20: =IF(Input!$D$23=1.5,'Ration Data'!E18,IF(Input!$D$23=2,'Ration Data'!M18,'Ration Data'!U18)) -> 0 | I20: =ROUND(($E$7*E20)+($F$7*F20)+($G$7*G20)+($H$7*H20),0) -> 0 | J20: =SUM(I20*D20) -> 0 | K20: =ROUNDUP((I20*Input!$D$12)/C20,0) -> 0 | L20: =SUM(K20*B20) -> 0
D21: $/head/day | E21: =IF(Input!$D$23=1.5,'Ration Data'!B19,IF(Input!$D$23=2,'Ration Data'!J19,'Ration Data'!R19)) -> 1.72309 | F21: =IF(Input!$D$23=1.5,'Ration Data'!C19,IF(Input!$D$23=2,'Ration Data'!K19,'Ration Data'!S19)) -> 1.95737 | G21: =IF(Input!$D$23=1.5,'Ration Data'!D19,IF(Input!$D$23=2,'Ration Data'!L19,'Ration Data'!T19)) -> 2.19174 | H21: =IF(Input!$D$23=1.5,'Ration Data'!E19,IF(Input!$D$23=2,'Ration Data'!M19,'Ration Data'!U19)) -> 2.4082 | J21: =SUM(J9:J20) -> 331.434 | L21: =SUM(L9:L20) -> 164777.5
A23: Corn Silage Ration
A24: Weight Range (lbs) | E24: 500 to 600 | F24: 600 to 700 | G24: 700-800 | H24: 800-900 | I24: Total lbs /steer | J24: Feed Cost $/steer | K24: ="Total Units Required ("&Input!D12&" steers)" -> Total Units Required (500 steers) | L24: ="Total Feed Cost ("&Input!D12&" steers)" -> Total Feed Cost (500 steers)
A25: Days on Feed | E25: =E7 -> 40 | F25: =F7 -> 40 | G25: =G7 -> 40 | H25: =H7 -> 40
A26: Feed Name | B26: $/unit | C26: lbs/Unit | D26: $/lb | E26: As Fed Lbs/Head/Day
A27: =A45 -> Alfalfa Grass Hay | B27: =B9 -> 120 | C27: 2000 | D27: 0.06 | E27: =IF(Input!$D$23=1.5,'Ration Data'!B24,IF(Input!$D$23=2,'Ration Data'!J24,'Ration Data'!R24)) -> 5 | F27: =IF(Input!$D$23=1.5,'Ration Data'!C24,IF(Input!$D$23=2,'Ration Data'!K24,'Ration Data'!S24)) -> 5 | G27: =IF(Input!$D$23=1.5,'Ration Data'!D24,IF(Input!$D$23=2,'Ration Data'!L24,'Ration Data'!T24)) -> 5 | H27: =IF(Input!$D$23=1.5,'Ration Data'!E24,IF(Input!$D$23=2,'Ration Data'!M24,'Ration Data'!U24)) -> 5 | I27: =ROUND(($E$25*E27)+($F$25*F27)+($G$25*G27)+($H$25*H27),0) -> 800 | J27: =SUM(I27*D27) -> 48 | K27: =ROUNDUP((I27*Input!$D$12)/C27,0) -> 200 | L27: =SUM(K27*B27) -> 24000
A28: =Input!A44 -> Corn Silage | B28: 45 | C28: 2000 | D28: 0.023 | E28: =IF(Input!$D$23=1.5,'Ration Data'!B25,IF(Input!$D$23=2,'Ration Data'!J25,'Ration Data'!R25)) -> 19 | F28: =IF(Input!$D$23=1.5,'Ration Data'!C25,IF(Input!$D$23=2,'Ration Data'!K25,'Ration Data'!S25)) -> 22 | G28: =IF(Input!$D$23=1.5,'Ration Data'!D25,IF(Input!$D$23=2,'Ration Data'!L25,'Ration Data'!T25)) -> 27 | H28: =IF(Input!$D$23=1.5,'Ration Data'!E25,IF(Input!$D$23=2,'Ration Data'!M25,'Ration Data'!U25)) -> 31.75 | I28: =ROUND(($E$25*E28)+($F$25*F28)+($G$25*G28)+($H$25*H28),0) -> 3990 | J28: =SUM(I28*D28) -> 91.77 | K28: =ROUNDUP((I28*Input!$D$12)/C28,0) -> 998 | L28: =SUM(K28*B28) -> 44910
A29: =Input!A45 -> Barley Silage | B29: 55 | C29: 2000 | D29: 0.028 | E29: =IF(Input!$D$23=1.5,'Ration Data'!B26,IF(Input!$D$23=2,'Ration Data'!J26,'Ration Data'!R26)) -> 0 | F29: =IF(Input!$D$23=1.5,'Ration Data'!C26,IF(Input!$D$23=2,'Ration Data'!K26,'Ration Data'!S26)) -> 0 | G29: =IF(Input!$D$23=1.5,'Ration Data'!D26,IF(Input!$D$23=2,'Ration Data'!L26,'Ration Data'!T26)) -> 0 | H29: =IF(Input!$D$23=1.5,'Ration Data'!E26,IF(Input!$D$23=2,'Ration Data'!M26,'Ration Data'!U26)) -> 0 | I29: 0 | J29: 0 | K29: =ROUNDUP((I29*Input!$D$12)/C29,0) -> 0 | L29: 0
A30: =Input!A46 -> Barley Grain | B30: 6.25 | C30: 48 | D30: 0.13 | E30: =IF(Input!$D$23=1.5,'Ration Data'!B27,IF(Input!$D$23=2,'Ration Data'!J27,'Ration Data'!R27)) -> 4 | F30: =IF(Input!$D$23=1.5,'Ration Data'!C27,IF(Input!$D$23=2,'Ration Data'!K27,'Ration Data'!S27)) -> 5 | G30: =IF(Input!$D$23=1.5,'Ration Data'!D27,IF(Input!$D$23=2,'Ration Data'!L27,'Ration Data'!T27)) -> 5.5 | H30: =IF(Input!$D$23=1.5,'Ration Data'!E27,IF(Input!$D$23=2,'Ration Data'!M27,'Ration Data'!U27)) -> 6 | I30: 820 | J30: 106.6 | K30: =ROUNDUP((I30*Input!$D$12)/C30,0) -> 8542 | L30: 53387.5
A31: =Input!A47 -> Greenfeed | B31: 120 | C31: 2000 | D31: 0.06 | E31: =IF(Input!$D$23=1.5,'Ration Data'!B28,IF(Input!$D$23=2,'Ration Data'!J28,'Ration Data'!R28)) -> 0 | F31: =IF(Input!$D$23=1.5,'Ration Data'!C28,IF(Input!$D$23=2,'Ration Data'!K28,'Ration Data'!S28)) -> 0 | G31: =IF(Input!$D$23=1.5,'Ration Data'!D28,IF(Input!$D$23=2,'Ration Data'!L28,'Ration Data'!T28)) -> 0 | H31: =IF(Input!$D$23=1.5,'Ration Data'!E28,IF(Input!$D$23=2,'Ration Data'!M28,'Ration Data'!U28)) -> 0 | I31: =ROUND(($E$25*E31)+($F$25*F31)+($G$25*G31)+($H$25*H31),0) -> 0 | J31: =SUM(I31*D31) -> 0 | K31: =ROUNDUP((I31*Input!$D$12)/C31,0) -> 0 | L31: =SUM(K31*B31) -> 0
A32: =Input!A48 -> Straw | B32: 70 | C32: 2000 | D32: 0.035 | E32: =IF(Input!$D$23=1.5,'Ration Data'!B29,IF(Input!$D$23=2,'Ration Data'!J29,'Ration Data'!R29)) -> 0 | F32: =IF(Input!$D$23=1.5,'Ration Data'!C29,IF(Input!$D$23=2,'Ration Data'!K29,'Ration Data'!S29)) -> 0 | G32: =IF(Input!$D$23=1.5,'Ration Data'!D29,IF(Input!$D$23=2,'Ration Data'!L29,'Ration Data'!T29)) -> 0 | H32: =IF(Input!$D$23=1.5,'Ration Data'!E29,IF(Input!$D$23=2,'Ration Data'!M29,'Ration Data'!U29)) -> 0 | I32: =ROUND(($E$25*E32)+($F$25*F32)+($G$25*G32)+($H$25*H32),0) -> 0 | J32: =SUM(I32*D32) -> 0 | K32: =ROUNDUP((I32*Input!$D$12)/C32,0) -> 0 | L32: =SUM(K32*B32) -> 0
A33: =Input!A49 -> 32-20% Feedlot Suppl. | B33: =B15 -> 500 | C33: 2205 | D33: 0.227 | E33: =IF(Input!$D$23=1.5,'Ration Data'!B30,IF(Input!$D$23=2,'Ration Data'!J30,'Ration Data'!R30)) -> 0 | F33: =IF(Input!$D$23=1.5,'Ration Data'!C30,IF(Input!$D$23=2,'Ration Data'!K30,'Ration Data'!S30)) -> 0 | G33: =IF(Input!$D$23=1.5,'Ration Data'!D30,IF(Input!$D$23=2,'Ration Data'!L30,'Ration Data'!T30)) -> 0 | H33: =IF(Input!$D$23=1.5,'Ration Data'!E30,IF(Input!$D$23=2,'Ration Data'!M30,'Ration Data'!U30)) -> 0 | I33: 0 | J33: 0 | K33: =ROUNDUP((I33*Input!$D$12)/C33,0) -> 0 | L33: 0
A34: =Input!A50 -> DDGS Corn/Wheat | B34: 350 | C34: 2205 | D34: 0.159 | E34: =IF(Input!$D$23=1.5,'Ration Data'!B31,IF(Input!$D$23=2,'Ration Data'!J31,'Ration Data'!R31)) -> 1 | F34: =IF(Input!$D$23=1.5,'Ration Data'!C31,IF(Input!$D$23=2,'Ration Data'!K31,'Ration Data'!S31)) -> 1 | G34: =IF(Input!$D$23=1.5,'Ration Data'!D31,IF(Input!$D$23=2,'Ration Data'!L31,'Ration Data'!T31)) -> 0.75 | H34: =IF(Input!$D$23=1.5,'Ration Data'!E31,IF(Input!$D$23=2,'Ration Data'!M31,'Ration Data'!U31)) -> 0.5 | I34: 130 | J34: 20.67 | K34: =ROUNDUP((I34*Input!$D$12)/C34,0) -> 30 | L34: 10500
A35: =Input!A51 -> 1:1 Premix | B35: 50 | C35: 55 | D35: 0.909 | E35: =IF(Input!$D$23=1.5,'Ration Data'!B32,IF(Input!$D$23=2,'Ration Data'!J32,'Ration Data'!R32)) -> 0 | F35: =IF(Input!$D$23=1.5,'Ration Data'!C32,IF(Input!$D$23=2,'Ration Data'!K32,'Ration Data'!S32)) -> 0 | G35: =IF(Input!$D$23=1.5,'Ration Data'!D32,IF(Input!$D$23=2,'Ration Data'!L32,'Ration Data'!T32)) -> 0 | H35: =IF(Input!$D$23=1.5,'Ration Data'!E32,IF(Input!$D$23=2,'Ration Data'!M32,'Ration Data'!U32)) -> 0 | I35: 0 | J35: 0 | K35: =ROUNDUP((I35*Input!$D$12)/C35,0) -> 0 | L35: 0
A36: =Input!A52 -> 2:1 Premix | B36: 50 | C36: 55 | D36: 0.909 | E36: =IF(Input!$D$23=1.5,'Ration Data'!B33,IF(Input!$D$23=2,'Ration Data'!J33,'Ration Data'!R33)) -> 0.25 | F36: =IF(Input!$D$23=1.5,'Ration Data'!C33,IF(Input!$D$23=2,'Ration Data'!K33,'Ration Data'!S33)) -> 0.28 | G36: =IF(Input!$D$23=1.5,'Ration Data'!D33,IF(Input!$D$23=2,'Ration Data'!L33,'Ration Data'!T33)) -> 0.285 | H36: =IF(Input!$D$23=1.5,'Ration Data'!E33,IF(Input!$D$23=2,'Ration Data'!M33,'Ration Data'!U33)) -> 0.315 | I36: 45 | J36: 40.905 | K36: =ROUNDUP((I36*Input!$D$12)/C36,0) -> 410 | L36: 20500
A37: =Input!A53 -> Limestone | B37: 20 | C37: 55 | D37: 0.364 | E37: =IF(Input!$D$23=1.5,'Ration Data'!B34,IF(Input!$D$23=2,'Ration Data'!J34,'Ration Data'!R34)) -> 0.065 | F37: =IF(Input!$D$23=1.5,'Ration Data'!C34,IF(Input!$D$23=2,'Ration Data'!K34,'Ration Data'!S34)) -> 0.09 | G37: =IF(Input!$D$23=1.5,'Ration Data'!D34,IF(Input!$D$23=2,'Ration Data'!L34,'Ration Data'!T34)) -> 0.09 | H37: =IF(Input!$D$23=1.5,'Ration Data'!E34,IF(Input!$D$23=2,'Ration Data'!M34,'Ration Data'!U34)) -> 0.105 | I37: 14 | J37: 5.096 | K37: =ROUNDUP((I37*Input!$D$12)/C37,0) -> 128 | L37: 2560
A38: =Input!A54 -> Other | B38: 0 | C38: 2000 | D38: 0 | E38: =IF(Input!$D$23=1.5,'Ration Data'!B35,IF(Input!$D$23=2,'Ration Data'!J35,'Ration Data'!R35)) -> 0 | F38: =IF(Input!$D$23=1.5,'Ration Data'!C35,IF(Input!$D$23=2,'Ration Data'!K35,'Ration Data'!S35)) -> 0 | G38: =IF(Input!$D$23=1.5,'Ration Data'!D35,IF(Input!$D$23=2,'Ration Data'!L35,'Ration Data'!T35)) -> 0 | H38: =IF(Input!$D$23=1.5,'Ration Data'!E35,IF(Input!$D$23=2,'Ration Data'!M35,'Ration Data'!U35)) -> 0 | I38: =ROUND(($E$25*E38)+($F$25*F38)+($G$25*G38)+($H$25*H38),0) -> 0 | J38: =SUM(I38*D38) -> 0 | K38: =ROUNDUP((I38*Input!$D$12)/C38,0) -> 0 | L38: =SUM(K38*B38) -> 0
D39: $/head/day | E39: =IF(Input!$D$23=1.5,'Ration Data'!B36,IF(Input!$D$23=2,'Ration Data'!J36,'Ration Data'!R36)) -> 1.66691 | F39: =IF(Input!$D$23=1.5,'Ration Data'!C36,IF(Input!$D$23=2,'Ration Data'!K36,'Ration Data'!S36)) -> 1.90228 | G39: =IF(Input!$D$23=1.5,'Ration Data'!D36,IF(Input!$D$23=2,'Ration Data'!L36,'Ration Data'!T36)) -> 2.047075 | H39: =IF(Input!$D$23=1.5,'Ration Data'!E36,IF(Input!$D$23=2,'Ration Data'!M36,'Ration Data'!U36)) -> 2.214305 | J39: =SUM(J27:J38) -> 313.041 | L39: =SUM(L27:L38) -> 155857.5
A41: Alfalfa Grass Hay Ration
A42: Weight Range (lbs) | E42: 500 to 600 | F42: 600 to 700 | G42: 700-800 | H42: 800-900 | I42: Total lbs /steer | J42: Feed Cost $/steer | K42: ="Total Units Required ("&Input!D12&" steers)" -> Total Units Required (500 steers) | L42: ="Total Feed Cost ("&Input!D12&" steers)" -> Total Feed Cost (500 steers)
A43: Days on Feed | E43: =E7 -> 40 | F43: =F7 -> 40 | G43: =G7 -> 40 | H43: =H7 -> 40
A44: Feed Name | B44: $/unit | C44: lbs/Unit | D44: $/lb | E44: As Fed Lbs/Head/Day
A45: =Input!A43 -> Alfalfa Grass Hay | B45: =B9 -> 120 | C45: 2000 | D45: 0.06 | E45: =IF(Input!$D$23=1.5,'Ration Data'!B41,IF(Input!$D$23=2,'Ration Data'!J41,'Ration Data'!R41)) -> 11.25 | F45: =IF(Input!$D$23=1.5,'Ration Data'!C41,IF(Input!$D$23=2,'Ration Data'!K41,'Ration Data'!S41)) -> 12.5 | G45: =IF(Input!$D$23=1.5,'Ration Data'!D41,IF(Input!$D$23=2,'Ration Data'!L41,'Ration Data'!T41)) -> 14 | H45: =IF(Input!$D$23=1.5,'Ration Data'!E41,IF(Input!$D$23=2,'Ration Data'!M41,'Ration Data'!U41)) -> 15 | I45: =ROUND(($E$43*E45)+($F$43*F45)+($G$43*G45)+($H$43*H45),0) -> 2110 | J45: =SUM(I45*D45) -> 126.6 | K45: =ROUNDUP((I45*Input!$D$12)/C45,0) -> 528 | L45: =SUM(K45*B45) -> 63360
A46: =Input!A44 -> Corn Silage | B46: 45 | C46: 2000 | D46: 0.023 | E46: =IF(Input!$D$23=1.5,'Ration Data'!B42,IF(Input!$D$23=2,'Ration Data'!J42,'Ration Data'!R42)) -> 0 | F46: =IF(Input!$D$23=1.5,'Ration Data'!C42,IF(Input!$D$23=2,'Ration Data'!K42,'Ration Data'!S42)) -> 0 | G46: =IF(Input!$D$23=1.5,'Ration Data'!D42,IF(Input!$D$23=2,'Ration Data'!L42,'Ration Data'!T42)) -> 0 | H46: =IF(Input!$D$23=1.5,'Ration Data'!E42,IF(Input!$D$23=2,'Ration Data'!M42,'Ration Data'!U42)) -> 0 | I46: =ROUND(($E$43*E46)+($F$43*F46)+($G$43*G46)+($H$43*H46),0) -> 0 | J46: =SUM(I46*D46) -> 0 | K46: =ROUNDUP((I46*Input!$D$12)/C46,0) -> 0 | L46: =SUM(K46*B46) -> 0
A47: =Input!A45 -> Barley Silage | B47: 55 | C47: 2000 | D47: 0.028 | E47: =IF(Input!$D$23=1.5,'Ration Data'!B43,IF(Input!$D$23=2,'Ration Data'!J43,'Ration Data'!R43)) -> 0 | F47: =IF(Input!$D$23=1.5,'Ration Data'!C43,IF(Input!$D$23=2,'Ration Data'!K43,'Ration Data'!S43)) -> 0 | G47: =IF(Input!$D$23=1.5,'Ration Data'!D43,IF(Input!$D$23=2,'Ration Data'!L43,'Ration Data'!T43)) -> 0 | H47: =IF(Input!$D$23=1.5,'Ration Data'!E43,IF(Input!$D$23=2,'Ration Data'!M43,'Ration Data'!U43)) -> 0 | I47: 0 | J47: 0 | K47: =ROUNDUP((I47*Input!$D$12)/C47,0) -> 0 | L47: 0
A48: =Input!A46 -> Barley Grain | B48: 6.25 | C48: 48 | D48: 0.13 | E48: =IF(Input!$D$23=1.5,'Ration Data'!B44,IF(Input!$D$23=2,'Ration Data'!J44,'Ration Data'!R44)) -> 6.75 | F48: =IF(Input!$D$23=1.5,'Ration Data'!C44,IF(Input!$D$23=2,'Ration Data'!K44,'Ration Data'!S44)) -> 7.8 | G48: =IF(Input!$D$23=1.5,'Ration Data'!D44,IF(Input!$D$23=2,'Ration Data'!L44,'Ration Data'!T44)) -> 8.7 | H48: =IF(Input!$D$23=1.5,'Ration Data'!E44,IF(Input!$D$23=2,'Ration Data'!M44,'Ration Data'!U44)) -> 9.7 | I48: 1318 | J48: 171.34 | K48: =ROUNDUP((I48*Input!$D$12)/C48,0) -> 13730 | L48: 85812.5
A49: =Input!A47 -> Greenfeed | B49: 120 | C49: 2000 | D49: 0.06 | E49: =IF(Input!$D$23=1.5,'Ration Data'!B45,IF(Input!$D$23=2,'Ration Data'!J45,'Ration Data'!R45)) -> 0 | F49: =IF(Input!$D$23=1.5,'Ration Data'!C45,IF(Input!$D$23=2,'Ration Data'!K45,'Ration Data'!S45)) -> 0 | G49: =IF(Input!$D$23=1.5,'Ration Data'!D45,IF(Input!$D$23=2,'Ration Data'!L45,'Ration Data'!T45)) -> 0 | H49: =IF(Input!$D$23=1.5,'Ration Data'!E45,IF(Input!$D$23=2,'Ration Data'!M45,'Ration Data'!U45)) -> 0 | I49: =ROUND(($E$43*E49)+($F$43*F49)+($G$43*G49)+($H$43*H49),0) -> 0 | J49: =SUM(I49*D49) -> 0 | K49: =ROUNDUP((I49*Input!$D$12)/C49,0) -> 0 | L49: =SUM(K49*B49) -> 0
A50: =Input!A48 -> Straw | B50: 70 | C50: 2000 | D50: 0.035 | E50: =IF(Input!$D$23=1.5,'Ration Data'!B46,IF(Input!$D$23=2,'Ration Data'!J46,'Ration Data'!R46)) -> 0 | F50: =IF(Input!$D$23=1.5,'Ration Data'!C46,IF(Input!$D$23=2,'Ration Data'!K46,'Ration Data'!S46)) -> 0 | G50: =IF(Input!$D$23=1.5,'Ration Data'!D46,IF(Input!$D$23=2,'Ration Data'!L46,'Ration Data'!T46)) -> 0 | H50: =IF(Input!$D$23=1.5,'Ration Data'!E46,IF(Input!$D$23=2,'Ration Data'!M46,'Ration Data'!U46)) -> 0 | I50: =ROUND(($E$43*E50)+($F$43*F50)+($G$43*G50)+($H$43*H50),0) -> 0 | J50: =SUM(I50*D50) -> 0 | K50: =ROUNDUP((I50*Input!$D$12)/C50,0) -> 0 | L50: =SUM(K50*B50) -> 0
A51: =Input!A49 -> 32-20% Feedlot Suppl. | B51: =B15 -> 500 | C51: 2205 | D51: 0.227 | E51: =IF(Input!$D$23=1.5,'Ration Data'!B47,IF(Input!$D$23=2,'Ration Data'!J47,'Ration Data'!R47)) -> 0 | F51: =IF(Input!$D$23=1.5,'Ration Data'!C47,IF(Input!$D$23=2,'Ration Data'!K47,'Ration Data'!S47)) -> 0 | G51: =IF(Input!$D$23=1.5,'Ration Data'!D47,IF(Input!$D$23=2,'Ration Data'!L47,'Ration Data'!T47)) -> 0 | H51: =IF(Input!$D$23=1.5,'Ration Data'!E47,IF(Input!$D$23=2,'Ration Data'!M47,'Ration Data'!U47)) -> 0 | I51: 0 | J51: 0 | K51: =ROUNDUP((I51*Input!$D$12)/C51,0) -> 0 | L51: 0
A52: =Input!A50 -> DDGS Corn/Wheat | B52: 350 | C52: 2205 | D52: 0.159 | E52: =IF(Input!$D$23=1.5,'Ration Data'!B48,IF(Input!$D$23=2,'Ration Data'!J48,'Ration Data'!R48)) -> 0 | F52: =IF(Input!$D$23=1.5,'Ration Data'!C48,IF(Input!$D$23=2,'Ration Data'!K48,'Ration Data'!S48)) -> 0 | G52: =IF(Input!$D$23=1.5,'Ration Data'!D48,IF(Input!$D$23=2,'Ration Data'!L48,'Ration Data'!T48)) -> 0 | H52: =IF(Input!$D$23=1.5,'Ration Data'!E48,IF(Input!$D$23=2,'Ration Data'!M48,'Ration Data'!U48)) -> 0 | I52: 0 | J52: 0 | K52: =ROUNDUP((I52*Input!$D$12)/C52,0) -> 0 | L52: 0
A53: =Input!A51 -> 1:1 Premix | B53: 50 | C53: 55 | D53: 0.909 | E53: =IF(Input!$D$23=1.5,'Ration Data'!B49,IF(Input!$D$23=2,'Ration Data'!J49,'Ration Data'!R49)) -> 0.25 | F53: =IF(Input!$D$23=1.5,'Ration Data'!C49,IF(Input!$D$23=2,'Ration Data'!K49,'Ration Data'!S49)) -> 0.27 | G53: =IF(Input!$D$23=1.5,'Ration Data'!D49,IF(Input!$D$23=2,'Ration Data'!L49,'Ration Data'!T49)) -> 0.31 | H53: =IF(Input!$D$23=1.5,'Ration Data'!E49,IF(Input!$D$23=2,'Ration Data'!M49,'Ration Data'!U49)) -> 0.33 | I53: 46 | J53: 41.814 | K53: =ROUNDUP((I53*Input!$D$12)/C53,0) -> 419 | L53: 20950
A54: =Input!A52 -> 2:1 Premix | B54: 50 | C54: 55 | D54: 0.909 | E54: =IF(Input!$D$23=1.5,'Ration Data'!B50,IF(Input!$D$23=2,'Ration Data'!J50,'Ration Data'!R50)) -> 0 | F54: =IF(Input!$D$23=1.5,'Ration Data'!C50,IF(Input!$D$23=2,'Ration Data'!K50,'Ration Data'!S50)) -> 0 | G54: =IF(Input!$D$23=1.5,'Ration Data'!D50,IF(Input!$D$23=2,'Ration Data'!L50,'Ration Data'!T50)) -> 0 | H54: =IF(Input!$D$23=1.5,'Ration Data'!E50,IF(Input!$D$23=2,'Ration Data'!M50,'Ration Data'!U50)) -> 0 | I54: 0 | J54: 0 | K54: =ROUNDUP((I54*Input!$D$12)/C54,0) -> 0 | L54: 0
A55: =Input!A53 -> Limestone | B55: 20 | C55: 55 | D55: 0.364 | E55: =IF(Input!$D$23=1.5,'Ration Data'!B51,IF(Input!$D$23=2,'Ration Data'!J51,'Ration Data'!R51)) -> 0 | F55: =IF(Input!$D$23=1.5,'Ration Data'!C51,IF(Input!$D$23=2,'Ration Data'!K51,'Ration Data'!S51)) -> 0 | G55: =IF(Input!$D$23=1.5,'Ration Data'!D51,IF(Input!$D$23=2,'Ration Data'!L51,'Ration Data'!T51)) -> 0 | H55: =IF(Input!$D$23=1.5,'Ration Data'!E51,IF(Input!$D$23=2,'Ration Data'!M51,'Ration Data'!U51)) -> 0 | I55: 0 | J55: 0 | K55: =ROUNDUP((I55*Input!$D$12)/C55,0) -> 0 | L55: 0
A56: =Input!A54 -> Other | B56: 0 | C56: 2000 | D56: 0 | E56: =IF(Input!$D$23=1.5,'Ration Data'!B52,IF(Input!$D$23=2,'Ration Data'!J52,'Ration Data'!R52)) -> 0 | F56: =IF(Input!$D$23=1.5,'Ration Data'!C52,IF(Input!$D$23=2,'Ration Data'!K52,'Ration Data'!S52)) -> 0 | G56: =IF(Input!$D$23=1.5,'Ration Data'!D52,IF(Input!$D$23=2,'Ration Data'!L52,'Ration Data'!T52)) -> 0 | H56: =IF(Input!$D$23=1.5,'Ration Data'!E52,IF(Input!$D$23=2,'Ration Data'!M52,'Ration Data'!U52)) -> 0 | I56: =ROUND(($E$43*E56)+($F$43*F56)+($G$43*G56)+($H$43*H56),0) -> 0 | J56: =SUM(I56*D56) -> 0 | K56: =ROUNDUP((I56*Input!$D$12)/C56,0) -> 0 | L56: =SUM(K56*B56) -> 0
D57: $/head/day | E57: =IF(Input!$D$23=1.5,'Ration Data'!B53,IF(Input!$D$23=2,'Ration Data'!J53,'Ration Data'!R53)) -> 1.77975 | F57: =IF(Input!$D$23=1.5,'Ration Data'!C53,IF(Input!$D$23=2,'Ration Data'!K53,'Ration Data'!S53)) -> 2.00943 | G57: =IF(Input!$D$23=1.5,'Ration Data'!D53,IF(Input!$D$23=2,'Ration Data'!L53,'Ration Data'!T53)) -> 2.25279 | H57: =IF(Input!$D$23=1.5,'Ration Data'!E53,IF(Input!$D$23=2,'Ration Data'!M53,'Ration Data'!U53)) -> 2.46097 | J57: =SUM(J45:J56) -> 339.754 | L57: =SUM(L45:L56) -> 170122.5
A59: ="Feed Summary - "&Input!B32&" Days" -> Feed Summary - 160 Days
D60: Total Feed Cost per Steer | G60: Average Feed Cost/Day | J60: Feed Cost per lb. of Gain Sold (shrunk weight)
A61: =A5 -> Barley Silage Ration | E61: =J21 -> 331.434 | H61: =E61/Input!$B$32 -> 2.0714625 | K61: =(E61/ROUND((Input!$D$16-(Input!$D$16*Input!$D$20/100))-(Input!$D$14-(Input!$D$14*Input!$D$21/100)),0)) -> 0.8885630027
A62: =A23 -> Corn Silage Ration | E62: =J39 -> 313.041 | H62: =E62/Input!$B$32 -> 1.95650625 | K62: =(E62/ROUND((Input!$D$16-(Input!$D$16*Input!$D$20/100))-(Input!$D$14-(Input!$D$14*Input!$D$21/100)),0)) -> 0.8392520107
A63: =A41 -> Alfalfa Grass Hay Ration | E63: =J57 -> 339.754 | H63: =E63/Input!$B$32 -> 2.1234625 | K63: =(E63/ROUND((Input!$D$16-(Input!$D$16*Input!$D$20/100))-(Input!$D$14-(Input!$D$14*Input!$D$21/100)),0)) -> 0.9108686327
A66: Note: The suggested feed rations above were formulated using Cowbytes Beef Ration Balancer software with no included allowance for wastage during feeding. Feed ration quantity and costs should be adjusted accordingly. If you need help with a budget, contact your local Manitoba Agriculture office.

Sheet Ration Data
B1: =ROUND(400/C2,0) -> 267 | C1: =SUM(B1/4) -> 66.75 | D1: days on feed | J1: =ROUND(400/K2,0) -> 200 | K1: =SUM(J1/4) -> 50 | L1: days on feed | R1: =ROUND(400/S2,0) -> 160 | S1: =SUM(R1/4) -> 40 | T1: days on feed
B2: ADG | C2: 1.5 | D2: lbs per day | J2: ADG | K2: 2 | L2: lbs per day | R2: ADG | S2: 2.5 | T2: lbs per day
A4: Barley Silage Ration | I4: Barley Silage Ration | Q4: Barley Silage Ration
A5: Weight Range (lbs) | B5: 500 to 600 | C5: 600 to 700 | D5: 700-800 | E5: 800-900 | F5: Total lbs /steer | G5: Total Cost /steer | I5: Weight Range (lbs) | J5: 500 to 600 | K5: 600 to 700 | L5: 700-800 | M5: 800-900 | N5: Total lbs /steer | O5: Total Cost /steer | Q5: Weight Range (lbs) | R5: 500 to 600 | S5: 600 to 700 | T5: 700-800 | U5: 800-900 | V5: Total lbs /steer | W5: Total Cost /steer
A6: Feed Name | B6: As Fed Lbs/Head/Day | I6: Feed Name | J6: As Fed Lbs/Head/Day | Q6: Feed Name | R6: As Fed Lbs/Head/Day
A7: =Input!A43 -> Alfalfa Grass Hay | B7: 4.75 | C7: 5 | D7: 4 | E7: 4 | F7: =SUM(($C$1*B7)+(C7*$C$1)+(D7*$C$1)+(E7*$C$1)) -> 1184.8125 | G7: =SUM(F7*Input!D43) -> 71.08875 | I7: =Input!A43 -> Alfalfa Grass Hay | J7: 3 | K7: 3 | L7: 2.5 | M7: 2 | N7: =SUM(($K$1*J7)+(K7*$K$1)+(L7*$K$1)+(M7*$K$1)) -> 525 | O7: =SUM(N7*Input!D43) -> 31.5 | Q7: =Input!A43 -> Alfalfa Grass Hay | R7: 3 | S7: 3 | T7: 2.5 | U7: 2 | V7: =SUM(($S$1*R7)+(S7*$S$1)+(T7*$S$1)+(U7*$S$1)) -> 420 | W7: =SUM(V7*Input!D43) -> 25.2
A8: =Input!A44 -> Corn Silage | B8: 0 | C8: 0 | D8: 0 | E8: 0 | F8: 0 | G8: =SUM(F8*Input!D44) -> 0 | I8: =Input!A44 -> Corn Silage | J8: 0 | K8: 0 | L8: 0 | M8: 0 | N8: 0 | O8: =SUM(N8*Input!D44) -> 0 | Q8: =Input!A44 -> Corn Silage | R8: 0 | S8: 0 | T8: 0 | U8: 0 | V8: 0 | W8: =SUM(V8*Input!D44) -> 0
A9: =Input!A45 -> Barley Silage | B9: 24 | C9: 28.25 | D9: 35.25 | E9: 40 | F9: 8510.625 | G9: =SUM(F9*Input!D45) -> 238.2975 | I9: =Input!A45 -> Barley Silage | J9: 25.5 | K9: 28.25 | L9: 34 | M9: 38.5 | N9: 6312.5 | O9: =SUM(N9*Input!D45) -> 176.75 | Q9: =Input!A45 -> Barley Silage | R9: 23 | S9: 25.75 | T9: 29.25 | U9: 32.5 | V9: 4420 | W9: =SUM(V9*Input!D45) -> 123.76
A10: =Input!A46 -> Barley Grain | B10: 1.5 | C10: 1.5 | D10: 1.5 | E10: 1.5 | F10: 400.5 | G10: =SUM(F10*Input!D46) -> 52.065 | I10: =Input!A46 -> Barley Grain | J10: 3 | K10: 3.75 | L10: 4 | M10: 4.5 | N10: 762.5 | O10: =SUM(N10*Input!D46) -> 99.125 | Q10: =Input!A46 -> Barley Grain | R10: 5 | S10: 6 | T10: 7 | U10: 8 | V10: 1040 | W10: =SUM(V10*Input!D46) -> 135.2
A11: =Input!A47 -> Greenfeed | B11: 0 | C11: 0 | D11: 0 | E11: 0 | F11: 0 | G11: =SUM(F11*Input!D47) -> 0 | I11: =Input!A47 -> Greenfeed | J11: 0 | K11: 0 | L11: 0 | M11: 0 | N11: 0 | O11: =SUM(N11*Input!D47) -> 0 | Q11: =Input!A47 -> Greenfeed | R11: 0 | S11: 0 | T11: 0 | U11: 0 | V11: 0 | W11: =SUM(V11*Input!D47) -> 0
A12: =Input!A48 -> Straw | B12: 0 | C12: 0 | D12: 0 | E12: 0 | F12: 0 | G12: =SUM(F12*Input!D48) -> 0 | I12: =Input!A48 -> Straw | J12: 0 | K12: 0 | L12: 0 | M12: 0 | N12: 0 | O12: =SUM(N12*Input!D48) -> 0 | Q12: =Input!A48 -> Straw | R12: 0 | S12: 0 | T12: 0 | U12: 0 | V12: 0 | W12: =SUM(V12*Input!D48) -> 0
A13: =Input!A49 -> 32-20% Feedlot Suppl. | B13: 0 | C13: 0 | D13: 0 | E13: 0 | F13: 0 | G13: =SUM(F13*Input!D49) -> 0 | I13: =Input!A49 -> 32-20% Feedlot Suppl. | J13: 0 | K13: 0 | L13: 0 | M13: 0 | N13: 0 | O13: =SUM(N13*Input!D49) -> 0 | Q13: =Input!A49 -> 32-20% Feedlot Suppl. | R13: 0 | S13: 0 | T13: 0 | U13: 0 | V13: 0 | W13: =SUM(V13*Input!D49) -> 0
A14: =Input!A50 -> DDGS Corn/Wheat | B14: 0 | C14: 0 | D14: 0 | E14: 0 | F14: 0 | G14: =SUM(F14*Input!D50) -> 0 | I14: =Input!A50 -> DDGS Corn/Wheat | J14: 0 | K14: 0 | L14: 0 | M14: 0 | N14: 0 | O14: =SUM(N14*Input!D50) -> 0 | Q14: =Input!A50 -> DDGS Corn/Wheat | R14: 0 | S14: 0 | T14: 0 | U14: 0 | V14: 0 | W14: =SUM(V14*Input!D50) -> 0
A15: =Input!A51 -> 1:1 Premix | B15: 0.25 | C15: 0.25 | D15: 0.275 | E15: 0.3 | F15: 71.75625 | G15: =SUM(F15*Input!D51) -> 65.22643125 | I15: =Input!A51 -> 1:1 Premix | J15: 0.25 | K15: 0.255 | L15: 0.28 | M15: 0.31 | N15: 54.75 | O15: =SUM(N15*Input!D51) -> 49.76775 | Q15: =Input!A51 -> 1:1 Premix | R15: 0.25 | S15: 0.27 | T15: 0.3 | U15: 0.32 | V15: 45.6 | W15: =SUM(V15*Input!D51) -> 41.4504
A16: =Input!A52 -> 2:1 Premix | B16: 0 | C16: 0 | D16: 0 | E16: 0 | F16: 0 | G16: =SUM(F16*Input!D52) -> 0 | I16: =Input!A52 -> 2:1 Premix | J16: 0 | K16: 0 | L16: 0 | M16: 0 | N16: 0 | O16: =SUM(N16*Input!D52) -> 0 | Q16: =Input!A52 -> 2:1 Premix | R16: 0 | S16: 0 | T16: 0 | U16: 0 | V16: 0 | W16: =SUM(V16*Input!D52) -> 0
A17: =Input!A53 -> Limestone | B17: 0 | C17: 0 | D17: 0 | E17: 0 | F17: 0 | G17: =SUM(F17*Input!D53) -> 0 | I17: =Input!A53 -> Limestone | J17: 0.035 | K17: 0.05 | L17: 0.07 | M17: 0.09 | N17: 12.25 | O17: =SUM(N17*Input!D53) -> 4.459 | Q17: =Input!A53 -> Limestone | R17: 0.06 | S17: 0.085 | T17: 0.11 | U17: 0.13 | V17: 15.4 | W17: =SUM(V17*Input!D53) -> 5.6056
A18: =Input!A54 -> Other | B18: 0 | C18: 0 | D18: 0 | E18: 0 | F18: 0 | G18: =SUM(F18*Input!D54) -> 0 | I18: =Input!A54 -> Other | J18: 0 | K18: 0 | L18: 0 | M18: 0 | N18: 0 | O18: =SUM(N18*Input!D54) -> 0 | Q18: =Input!A54 -> Other | R18: 0 | S18: 0 | T18: 0 | U18: 0 | V18: 0 | W18: =SUM(V18*Input!D54) -> 0
A19: $/head/day | B19: =SUM((B7*Input!D43)+(B8*Input!D44)+(B9*Input!D45)+(B10*Input!D46)+(B11*Input!D47)+(B12*Input!D48)+(B13*Input!D49)+(B14*Input!D50)+(B15*Input!D51)+(B16*Input!D52)+(B17*Input!D53)+(B18*Input!D54)) -> 1.37925 | C19: =SUM((C7*Input!D43)+(C8*Input!D44)+(C9*Input!D45)+(C10*Input!D46)+(C11*Input!D47)+(C12*Input!D48)+(C13*Input!D49)+(C14*Input!D50)+(C15*Input!D51)+(C16*Input!D52)+(C17*Input!D53)+(C18*Input!D54)) -> 1.51325 | D19: =SUM((D7*Input!D43)+(D8*Input!D44)+(D9*Input!D45)+(D10*Input!D46)+(D11*Input!D47)+(D12*Input!D48)+(D13*Input!D49)+(D14*Input!D50)+(D15*Input!D51)+(D16*Input!D52)+(D17*Input!D53)+(D18*Input!D54)) -> 1.671975 | E19: =SUM((E7*Input!D43)+(E8*Input!D44)+(E9*Input!D45)+(E10*Input!D46)+(E11*Input!D47)+(E12*Input!D48)+(E13*Input!D49)+(E14*Input!D50)+(E15*Input!D51)+(E16*Input!D52)+(E17*Input!D53)+(E18*Input!D54)) -> 1.8277 | G19: =SUM(G7:G18) -> 426.6776812 | I19: $/head/day | J19: =SUM((J7*Input!D43)+(J8*Input!D44)+(J9*Input!D45)+(J10*Input!D46)+(J11*Input!D47)+(J12*Input!D48)+(J13*Input!D49)+(J14*Input!D50)+(J15*Input!D51)+(J16*Input!D52)+(J17*Input!D53)+(J18*Input!D54)) -> 1.52399 | K19: =SUM((K7*Input!D43)+(K8*Input!D44)+(K9*Input!D45)+(K10*Input!D46)+(K11*Input!D47)+(K12*Input!D48)+(K13*Input!D49)+(K14*Input!D50)+(K15*Input!D51)+(K16*Input!D52)+(K17*Input!D53)+(K18*Input!D54)) -> 1.708495 | L19: =SUM((L7*Input!D43)+(L8*Input!D44)+(L9*Input!D45)+(L10*Input!D46)+(L11*Input!D47)+(L12*Input!D48)+(L13*Input!D49)+(L14*Input!D50)+(L15*Input!D51)+(L16*Input!D52)+(L17*Input!D53)+(L18*Input!D54)) -> 1.902 | M19: =SUM((M7*Input!D43)+(M8*Input!D44)+(M9*Input!D45)+(M10*Input!D46)+(M11*Input!D47)+(M12*Input!D48)+(M13*Input!D49)+(M14*Input!D50)+(M15*Input!D51)+(M16*Input!D52)+(M17*Input!D53)+(M18*Input!D54)) -> 2.09755 | O19: =SUM(O7:O18) -> 361.60175 | Q19: $/head/day | R19: =SUM((R7*Input!D43)+(R8*Input!D44)+(R9*Input!D45)+(R10*Input!D46)+(R11*Input!D47)+(R12*Input!D48)+(R13*Input!D49)+(R14*Input!D50)+(R15*Input!D51)+(R16*Input!D52)+(R17*Input!D53)+(R18*Input!D54)) -> 1.72309 | S19: =SUM((S7*Input!D43)+(S8*Input!D44)+(S9*Input!D45)+(S10*Input!D46)+(S11*Input!D47)+(S12*Input!D48)+(S13*Input!D49)+(S14*Input!D50)+(S15*Input!D51)+(S16*Input!D52)+(S17*Input!D53)+(S18*Input!D54)) -> 1.95737 | T19: =SUM((T7*Input!D43)+(T8*Input!D44)+(T9*Input!D45)+(T10*Input!D46)+(T11*Input!D47)+(T12*Input!D48)+(T13*Input!D49)+(T14*Input!D50)+(T15*Input!D51)+(T16*Input!D52)+(T17*Input!D53)+(T18*Input!D54)) -> 2.19174 | U19: =SUM((U7*Input!D43)+(U8*Input!D44)+(U9*Input!D45)+(U10*Input!D46)+(U11*Input!D47)+(U12*Input!D48)+(U13*Input!D49)+(U14*Input!D50)+(U15*Input!D51)+(U16*Input!D52)+(U17*Input!D53)+(U18*Input!D54)) -> 2.4082 | W19: =SUM(W7:W18) -> 331.216
A21: Corn Silage Ration | I21: Corn Silage Ration | Q21: Corn Silage Ration
A22: Weight Range (lbs) | B22: 500 to 600 | C22: 600 to 700 | D22: 700-800 | E22: 800-900 | F22: Total lbs /steer | G22: Total Cost /steer | I22: Weight Range (lbs) | J22: 500 to 600 | K22: 600 to 700 | L22: 700-800 | M22: 800-900 | N22: Total lbs /steer | O22: Total Cost /steer | Q22: Weight Range (lbs) | R22: 500 to 600 | S22: 600 to 700 | T22: 700-800 | U22: 800-900 | V22: Total lbs /steer | W22: Total Cost /steer
A23: Feed Name | B23: As Fed Lbs/Head/Day | I23: Feed Name | J23: As Fed Lbs/Head/Day | Q23: Feed Name | R23: As Fed Lbs/Head/Day
A24: =Input!A43 -> Alfalfa Grass Hay | B24: 7.5 | C24: 8 | D24: 8 | E24: 8 | F24: =SUM(($C$1*B24)+(C24*$C$1)+(D24*$C$1)+(E24*$C$1)) -> 2102.625 | G24: =SUM(F24*Input!D43) -> 126.1575 | I24: =Input!A43 -> Alfalfa Grass Hay | J24: 5 | K24: 5 | L24: 5 | M24: 5 | N24: =SUM(($K$1*J24)+(K24*$K$1)+(L24*$K$1)+(M24*$K$1)) -> 1000 | O24: =SUM(N24*Input!D43) -> 60 | Q24: =Input!A43 -> Alfalfa Grass Hay | R24: 5 | S24: 5 | T24: 5 | U24: 5 | V24: =SUM(($S$1*R24)+(S24*$S$1)+(T24*$S$1)+(U24*$S$1)) -> 800 | W24: =SUM(V24*Input!D43) -> 48
A25: =Input!A44 -> Corn Silage | B25: 18 | C25: 22.5 | D25: 27.5 | E25: 32 | F25: 6675 | G25: =SUM(F25*Input!D44) -> 153.525 | I25: =Input!A44 -> Corn Silage | J25: 23 | K25: 28 | L25: 34 | M25: 39 | N25: 6200 | O25: =SUM(N25*Input!D44) -> 142.6 | Q25: =Input!A44 -> Corn Silage | R25: 19 | S25: 22 | T25: 27 | U25: 31.75 | V25: 3990 | W25: =SUM(V25*Input!D44) -> 91.77
A26: =Input!A45 -> Barley Silage | B26: 0 | C26: 0 | D26: 0 | E26: 0 | F26: 0 | G26: =SUM(F26*Input!D45) -> 0 | I26: =Input!A45 -> Barley Silage | J26: 0 | K26: 0 | L26: 0 | M26: 0 | N26: 0 | O26: =SUM(N26*Input!D45) -> 0 | Q26: =Input!A45 -> Barley Silage | R26: 0 | S26: 0 | T26: 0 | U26: 0 | V26: 0 | W26: =SUM(V26*Input!D45) -> 0
A27: =Input!A46 -> Barley Grain | B27: 1.5 | C27: 1.5 | D27: 1.5 | E27: 1.5 | F27: 400.5 | G27: =SUM(F27*Input!D46) -> 52.065 | I27: =Input!A46 -> Barley Grain | J27: 2.5 | K27: 2.5 | L27: 2.5 | M27: 2.5 | N27: 500 | O27: =SUM(N27*Input!D46) -> 65 | Q27: =Input!A46 -> Barley Grain | R27: 4 | S27: 5 | T27: 5.5 | U27: 6 | V27: 820 | W27: =SUM(V27*Input!D46) -> 106.6
A28: =Input!A47 -> Greenfeed | B28: 0 | C28: 0 | D28: 0 | E28: 0 | F28: 0 | G28: =SUM(F28*Input!D47) -> 0 | I28: =Input!A47 -> Greenfeed | J28: 0 | K28: 0 | L28: 0 | M28: 0 | N28: 0 | O28: =SUM(N28*Input!D47) -> 0 | Q28: =Input!A47 -> Greenfeed | R28: 0 | S28: 0 | T28: 0 | U28: 0 | V28: 0 | W28: =SUM(V28*Input!D47) -> 0
A29: =Input!A48 -> Straw | B29: 0 | C29: 0 | D29: 0 | E29: 0 | F29: 0 | G29: =SUM(F29*Input!D48) -> 0 | I29: =Input!A48 -> Straw | J29: 0 | K29: 0 | L29: 0 | M29: 0 | N29: 0 | O29: =SUM(N29*Input!D48) -> 0 | Q29: =Input!A48 -> Straw | R29: 0 | S29: 0 | T29: 0 | U29: 0 | V29: 0 | W29: =SUM(V29*Input!D48) -> 0
A30: =Input!A49 -> 32-20% Feedlot Suppl. | B30: 0 | C30: 0 | D30: 0 | E30: 0 | F30: 0 | G30: =SUM(F30*Input!D49) -> 0 | I30: =Input!A49 -> 32-20% Feedlot Suppl. | J30: 0.5 | K30: 0.55 | L30: 0.6 | M30: 0.65 | N30: 115 | O30: =SUM(N30*Input!D49) -> 26.105 | Q30: =Input!A49 -> 32-20% Feedlot Suppl. | R30: 0 | S30: 0 | T30: 0 | U30: 0 | V30: 0 | W30: =SUM(V30*Input!D49) -> 0
A31: =Input!A50 -> DDGS Corn/Wheat | B31: 0 | C31: 0 | D31: 0 | E31: 0 | F31: 0 | G31: =SUM(F31*Input!D50) -> 0 | I31: =Input!A50 -> DDGS Corn/Wheat | J31: 0 | K31: 0 | L31: 0 | M31: 0 | N31: 0 | O31: =SUM(N31*Input!D50) -> 0 | Q31: =Input!A50 -> DDGS Corn/Wheat | R31: 1 | S31: 1 | T31: 0.75 | U31: 0.5 | V31: 130 | W31: =SUM(V31*Input!D50) -> 20.67
A32: =Input!A51 -> 1:1 Premix | B32: 0 | C32: 0 | D32: 0 | E32: 0 | F32: 0 | G32: =SUM(F32*Input!D51) -> 0 | I32: =Input!A51 -> 1:1 Premix | J32: 0 | K32: 0 | L32: 0 | M32: 0 | N32: 0 | O32: =SUM(N32*Input!D51) -> 0 | Q32: =Input!A51 -> 1:1 Premix | R32: 0 | S32: 0 | T32: 0 | U32: 0 | V32: 0 | W32: =SUM(V32*Input!D51) -> 0
A33: =Input!A52 -> 2:1 Premix | B33: 0.25 | C33: 0.25 | D33: 0.275 | E33: 0.3 | F33: 71.75625 | G33: =SUM(F33*Input!D52) -> 65.22643125 | I33: =Input!A52 -> 2:1 Premix | J33: 0 | K33: 0 | L33: 0 | M33: 0 | N33: 0 | O33: =SUM(N33*Input!D52) -> 0 | Q33: =Input!A52 -> 2:1 Premix | R33: 0.25 | S33: 0.28 | T33: 0.285 | U33: 0.315 | V33: 45.2 | W33: =SUM(V33*Input!D52) -> 41.0868
A34: =Input!A53 -> Limestone | B34: 0 | C34: 0 | D34: 0 | E34: 0 | F34: 0 | G34: =SUM(F34*Input!D53) -> 0 | I34: =Input!A53 -> Limestone | J34: 0 | K34: 0 | L34: 0 | M34: 0 | N34: 0 | O34: =SUM(N34*Input!D53) -> 0 | Q34: =Input!A53 -> Limestone | R34: 0.065 | S34: 0.09 | T34: 0.09 | U34: 0.105 | V34: 14 | W34: =SUM(V34*Input!D53) -> 5.096
A35: =Input!A54 -> Other | B35: 0 | C35: 0 | D35: 0 | E35: 0 | F35: 0 | G35: =SUM(F35*Input!D54) -> 0 | I35: =Input!A54 -> Other | J35: 0 | K35: 0 | L35: 0 | M35: 0 | N35: 0 | O35: =SUM(N35*Input!D54) -> 0 | Q35: =Input!A54 -> Other | R35: 0 | S35: 0 | T35: 0 | U35: 0 | V35: 0 | W35: =SUM(V35*Input!D54) -> 0
A36: $/head/day | B36: =SUM((B24*Input!D43)+(B25*Input!D44)+(B26*Input!D45)+(B27*Input!D46)+(B28*Input!D47)+(B29*Input!D48)+(B30*Input!D49)+(B31*Input!D50)+(B32*Input!D51)+(B33*Input!D52)+(B34*Input!D53)+(B35*Input!D54)) -> 1.28625 | C36: =SUM((C24*Input!D43)+(C25*Input!D44)+(C26*Input!D45)+(C27*Input!D46)+(C28*Input!D47)+(C29*Input!D48)+(C30*Input!D49)+(C31*Input!D50)+(C32*Input!D51)+(C33*Input!D52)+(C34*Input!D53)+(C35*Input!D54)) -> 1.41975 | D36: =SUM((D24*Input!D43)+(D25*Input!D44)+(D26*Input!D45)+(D27*Input!D46)+(D28*Input!D47)+(D29*Input!D48)+(D30*Input!D49)+(D31*Input!D50)+(D32*Input!D51)+(D33*Input!D52)+(D34*Input!D53)+(D35*Input!D54)) -> 1.557475 | E36: =SUM((E24*Input!D43)+(E25*Input!D44)+(E26*Input!D45)+(E27*Input!D46)+(E28*Input!D47)+(E29*Input!D48)+(E30*Input!D49)+(E31*Input!D50)+(E32*Input!D51)+(E33*Input!D52)+(E34*Input!D53)+(E35*Input!D54)) -> 1.6837 | G36: =SUM(G24:G35) -> 396.9739312 | I36: $/head/day | J36: =SUM((J24*Input!D43)+(J25*Input!D44)+(J26*Input!D45)+(J27*Input!D46)+(J28*Input!D47)+(J29*Input!D48)+(J30*Input!D49)+(J31*Input!D50)+(J32*Input!D51)+(J33*Input!D52)+(J34*Input!D53)+(J35*Input!D54)) -> 1.2675 | K36: =SUM((K24*Input!D43)+(K25*Input!D44)+(K26*Input!D45)+(K27*Input!D46)+(K28*Input!D47)+(K29*Input!D48)+(K30*Input!D49)+(K31*Input!D50)+(K32*Input!D51)+(K33*Input!D52)+(K34*Input!D53)+(K35*Input!D54)) -> 1.39385 | L36: =SUM((L24*Input!D43)+(L25*Input!D44)+(L26*Input!D45)+(L27*Input!D46)+(L28*Input!D47)+(L29*Input!D48)+(L30*Input!D49)+(L31*Input!D50)+(L32*Input!D51)+(L33*Input!D52)+(L34*Input!D53)+(L35*Input!D54)) -> 1.5432 | M36: =SUM((M24*Input!D43)+(M25*Input!D44)+(M26*Input!D45)+(M27*Input!D46)+(M28*Input!D47)+(M29*Input!D48)+(M30*Input!D49)+(M31*Input!D50)+(M32*Input!D51)+(M33*Input!D52)+(M34*Input!D53)+(M35*Input!D54)) -> 1.66955 | O36: =SUM(O24:O35) -> 293.705 | Q36: $/head/day | R36: =SUM((R24*Input!D43)+(R25*Input!D44)+(R26*Input!D45)+(R27*Input!D46)+(R28*Input!D47)+(R29*Input!D48)+(R30*Input!D49)+(R31*Input!D50)+(R32*Input!D51)+(R33*Input!D52)+(R34*Input!D53)+(R35*Input!D54)) -> 1.66691 | S36: =SUM((S24*Input!D43)+(S25*Input!D44)+(S26*Input!D45)+(S27*Input!D46)+(S28*Input!D47)+(S29*Input!D48)+(S30*Input!D49)+(S31*Input!D50)+(S32*Input!D51)+(S33*Input!D52)+(S34*Input!D53)+(S35*Input!D54)) -> 1.90228 | T36: =SUM((T24*Input!D43)+(T25*Input!D44)+(T26*Input!D45)+(T27*Input!D46)+(T28*Input!D47)+(T29*Input!D48)+(T30*Input!D49)+(T31*Input!D50)+(T32*Input!D51)+(T33*Input!D52)+(T34*Input!D53)+(T35*Input!D54)) -> 2.047075 | U36: =SUM((U24*Input!D43)+(U25*Input!D44)+(U26*Input!D45)+(U27*Input!D46)+(U28*Input!D47)+(U29*Input!D48)+(U30*Input!D49)+(U31*Input!D50)+(U32*Input!D51)+(U33*Input!D52)+(U34*Input!D53)+(U35*Input!D54)) -> 2.214305 | W36: =SUM(W24:W35) -> 313.2228
A38: Alfalfa Grass Hay Ration | I38: Alfalfa Grass Hay Ration | Q38: Alfalfa Grass Hay Ration
A39: Weight Range (lbs) | B39: 500 to 600 | C39: 600 to 700 | D39: 700-800 | E39: 800-900 | F39: Total lbs /steer | G39: Total Cost /steer | I39: Weight Range (lbs) | J39: 500 to 600 | K39: 600 to 700 | L39: 700-800 | M39: 800-900 | N39: Total lbs /steer | O39: Total Cost /steer | Q39: Weight Range (lbs) | R39: 500 to 600 | S39: 600 to 700 | T39: 700-800 | U39: 800-900 | V39: Total lbs /steer | W39: Total Cost /steer
A40: Feed Name | B40: As Fed Lbs/Head/Day | I40: Feed Name | J40: As Fed Lbs/Head/Day | Q40: Feed Name | R40: As Fed Lbs/Head/Day
A41: =Input!A43 -> Alfalfa Grass Hay | B41: 13.5 | C41: 15.2 | D41: 17.25 | E41: 18.5 | F41: =SUM(($C$1*B41)+(C41*$C$1)+(D41*$C$1)+(E41*$C$1)) -> 4302.0375 | G41: =SUM(F41*Input!D43) -> 258.12225 | I41: =Input!A43 -> Alfalfa Grass Hay | J41: 13 | K41: 15 | L41: 16.75 | M41: 18.5 | N41: =SUM(($K$1*J41)+(K41*$K$1)+(L41*$K$1)+(M41*$K$1)) -> 3162.5 | O41: =SUM(N41*Input!D43) -> 189.75 | Q41: =Input!A43 -> Alfalfa Grass Hay | R41: 11.25 | S41: 12.5 | T41: 14 | U41: 15 | V41: =SUM(($S$1*R41)+(S41*$S$1)+(T41*$S$1)+(U41*$S$1)) -> 2110 | W41: =SUM(V41*Input!D43) -> 126.6
A42: =Input!A44 -> Corn Silage | B42: 0 | C42: 0 | D42: 0 | E42: 0 | F42: 0 | G42: =SUM(F42*Input!D44) -> 0 | I42: =Input!A44 -> Corn Silage | J42: 0 | K42: 0 | L42: 0 | M42: 0 | N42: 0 | O42: =SUM(N42*Input!D44) -> 0 | Q42: =Input!A44 -> Corn Silage | R42: 0 | S42: 0 | T42: 0 | U42: 0 | V42: 0 | W42: =SUM(V42*Input!D44) -> 0
A43: =Input!A45 -> Barley Silage | B43: 0 | C43: 0 | D43: 0 | E43: 0 | F43: 0 | G43: =SUM(F43*Input!D45) -> 0 | I43: =Input!A45 -> Barley Silage | J43: 0 | K43: 0 | L43: 0 | M43: 0 | N43: 0 | O43: =SUM(N43*Input!D45) -> 0 | Q43: =Input!A45 -> Barley Silage | R43: 0 | S43: 0 | T43: 0 | U43: 0 | V43: 0 | W43: =SUM(V43*Input!D45) -> 0
A44: =Input!A46 -> Barley Grain | B44: 3 | C44: 3.5 | D44: 3.5 | E44: 4 | F44: 934.5 | G44: =SUM(F44*Input!D46) -> 121.485 | I44: =Input!A46 -> Barley Grain | J44: 4.5 | K44: 5 | L44: 5.5 | M44: 6 | N44: 1050 | O44: =SUM(N44*Input!D46) -> 136.5 | Q44: =Input!A46 -> Barley Grain | R44: 6.75 | S44: 7.8 | T44: 8.7 | U44: 9.7 | V44: 1318 | W44: =SUM(V44*Input!D46) -> 171.34
A45: =Input!A47 -> Greenfeed | B45: 0 | C45: 0 | D45: 0 | E45: 0 | F45: 0 | G45: =SUM(F45*Input!D47) -> 0 | I45: =Input!A47 -> Greenfeed | J45: 0 | K45: 0 | L45: 0 | M45: 0 | N45: 0 | O45: =SUM(N45*Input!D47) -> 0 | Q45: =Input!A47 -> Greenfeed | R45: 0 | S45: 0 | T45: 0 | U45: 0 | V45: 0 | W45: =SUM(V45*Input!D47) -> 0
A46: =Input!A48 -> Straw | B46: 0 | C46: 0 | D46: 0 | E46: 0 | F46: 0 | G46: =SUM(F46*Input!D48) -> 0 | I46: =Input!A48 -> Straw | J46: 0 | K46: 0 | L46: 0 | M46: 0 | N46: 0 | O46: =SUM(N46*Input!D48) -> 0 | Q46: =Input!A48 -> Straw | R46: 0 | S46: 0 | T46: 0 | U46: 0 | V46: 0 | W46: =SUM(V46*Input!D48) -> 0
A47: =Input!A49 -> 32-20% Feedlot Suppl. | B47: 0 | C47: 0 | D47: 0 | E47: 0 | F47: 0 | G47: =SUM(F47*Input!D49) -> 0 | I47: =Input!A49 -> 32-20% Feedlot Suppl. | J47: 0 | K47: 0 | L47: 0 | M47: 0 | N47: 0 | O47: =SUM(N47*Input!D49) -> 0 | Q47: =Input!A49 -> 32-20% Feedlot Suppl. | R47: 0 | S47: 0 | T47: 0 | U47: 0 | V47: 0 | W47: =SUM(V47*Input!D49) -> 0
A48: =Input!A50 -> DDGS Corn/Wheat | B48: 0 | C48: 0 | D48: 0 | E48: 0 | F48: 0 | G48: =SUM(F48*Input!D50) -> 0 | I48: =Input!A50 -> DDGS Corn/Wheat | J48: 0 | K48: 0 | L48: 0 | M48: 0 | N48: 0 | O48: =SUM(N48*Input!D50) -> 0 | Q48: =Input!A50 -> DDGS Corn/Wheat | R48: 0 | S48: 0 | T48: 0 | U48: 0 | V48: 0 | W48: =SUM(V48*Input!D50) -> 0
A49: =Input!A51 -> 1:1 Premix | B49: 0.25 | C49: 0.25 | D49: 0.28 | E49: 0.3 | F49: 72.09 | G49: =SUM(F49*Input!D51) -> 65.52981 | I49: =Input!A51 -> 1:1 Premix | J49: 0.25 | K49: 0.27 | L49: 0.3 | M49: 0.33 | N49: 57.5 | O49: =SUM(N49*Input!D51) -> 52.2675 | Q49: =Input!A51 -> 1:1 Premix | R49: 0.25 | S49: 0.27 | T49: 0.31 | U49: 0.33 | V49: 46.4 | W49: =SUM(V49*Input!D51) -> 42.1776
A50: =Input!A52 -> 2:1 Premix | B50: 0 | C50: 0 | D50: 0 | E50: 0 | F50: 0 | G50: =SUM(F50*Input!D52) -> 0 | I50: =Input!A52 -> 2:1 Premix | J50: 0 | K50: 0 | L50: 0 | M50: 0 | N50: 0 | O50: =SUM(N50*Input!D52) -> 0 | Q50: =Input!A52 -> 2:1 Premix | R50: 0 | S50: 0 | T50: 0 | U50: 0 | V50: 0 | W50: =SUM(V50*Input!D52) -> 0
A51: =Input!A53 -> Limestone | B51: 0 | C51: 0 | D51: 0 | E51: 0 | F51: 0 | G51: =SUM(F51*Input!D53) -> 0 | I51: =Input!A53 -> Limestone | J51: 0 | K51: 0 | L51: 0 | M51: 0 | N51: 0 | O51: =SUM(N51*Input!D53) -> 0 | Q51: =Input!A53 -> Limestone | R51: 0 | S51: 0 | T51: 0 | U51: 0 | V51: 0 | W51: =SUM(V51*Input!D53) -> 0
A52: =Input!A54 -> Other | B52: 0 | C52: 0 | D52: 0 | E52: 0 | F52: 0 | G52: =SUM(F52*Input!D54) -> 0 | I52: =Input!A54 -> Other | J52: 0 | K52: 0 | L52: 0 | M52: 0 | N52: 0 | O52: =SUM(N52*Input!D54) -> 0 | Q52: =Input!A54 -> Other | R52: 0 | S52: 0 | T52: 0 | U52: 0 | V52: 0 | W52: =SUM(V52*Input!D54) -> 0
A53: $/head/day | B53: =SUM((B41*Input!D43)+(B42*Input!D44)+(B43*Input!D45)+(B44*Input!D46)+(B45*Input!D47)+(B46*Input!D48)+(B47*Input!D49)+(B48*Input!D50)+(B49*Input!D51)+(B50*Input!D52)+(B51*Input!D53)+(B52*Input!D54)) -> 1.42725 | C53: =SUM((C41*Input!D43)+(C42*Input!D44)+(C43*Input!D45)+(C44*Input!D46)+(C45*Input!D47)+(C46*Input!D48)+(C47*Input!D49)+(C48*Input!D50)+(C49*Input!D51)+(C50*Input!D52)+(C51*Input!D53)+(C52*Input!D54)) -> 1.59425 | D53: =SUM((D41*Input!D43)+(D42*Input!D44)+(D43*Input!D45)+(D44*Input!D46)+(D45*Input!D47)+(D46*Input!D48)+(D47*Input!D49)+(D48*Input!D50)+(D49*Input!D51)+(D50*Input!D52)+(D51*Input!D53)+(D52*Input!D54)) -> 1.74452 | E53: =SUM((E41*Input!D43)+(E42*Input!D44)+(E43*Input!D45)+(E44*Input!D46)+(E45*Input!D47)+(E46*Input!D48)+(E47*Input!D49)+(E48*Input!D50)+(E49*Input!D51)+(E50*Input!D52)+(E51*Input!D53)+(E52*Input!D54)) -> 1.9027 | G53: =SUM(G41:G51) -> 445.13706 | I53: $/head/day | J53: =SUM((J41*Input!D43)+(J42*Input!D44)+(J43*Input!D45)+(J44*Input!D46)+(J45*Input!D47)+(J46*Input!D48)+(J47*Input!D49)+(J48*Input!D50)+(J49*Input!D51)+(J50*Input!D52)+(J51*Input!D53)+(J52*Input!D54)) -> 1.59225 | K53: =SUM((K41*Input!D43)+(K42*Input!D44)+(K43*Input!D45)+(K44*Input!D46)+(K45*Input!D47)+(K46*Input!D48)+(K47*Input!D49)+(K48*Input!D50)+(K49*Input!D51)+(K50*Input!D52)+(K51*Input!D53)+(K52*Input!D54)) -> 1.79543 | L53: =SUM((L41*Input!D43)+(L42*Input!D44)+(L43*Input!D45)+(L44*Input!D46)+(L45*Input!D47)+(L46*Input!D48)+(L47*Input!D49)+(L48*Input!D50)+(L49*Input!D51)+(L50*Input!D52)+(L51*Input!D53)+(L52*Input!D54)) -> 1.9927 | M53: =SUM((M41*Input!D43)+(M42*Input!D44)+(M43*Input!D45)+(M44*Input!D46)+(M45*Input!D47)+(M46*Input!D48)+(M47*Input!D49)+(M48*Input!D50)+(M49*Input!D51)+(M50*Input!D52)+(M51*Input!D53)+(M52*Input!D54)) -> 2.18997 | O53: =SUM(O41:O52) -> 378.5175 | Q53: $/head/day | R53: =SUM((R41*Input!D43)+(R42*Input!D44)+(R43*Input!D45)+(R44*Input!D46)+(R45*Input!D47)+(R46*Input!D48)+(R47*Input!D49)+(R48*Input!D50)+(R49*Input!D51)+(R50*Input!D52)+(R51*Input!D53)+(R52*Input!D54)) -> 1.77975 | S53: =SUM((S41*Input!D43)+(S42*Input!D44)+(S43*Input!D45)+(S44*Input!D46)+(S45*Input!D47)+(S46*Input!D48)+(S47*Input!D49)+(S48*Input!D50)+(S49*Input!D51)+(S50*Input!D52)+(S51*Input!D53)+(S52*Input!D54)) -> 2.00943 | T53: =SUM((T41*Input!D43)+(T42*Input!D44)+(T43*Input!D45)+(T44*Input!D46)+(T45*Input!D47)+(T46*Input!D48)+(T47*Input!D49)+(T48*Input!D50)+(T49*Input!D51)+(T50*Input!D52)+(T51*Input!D53)+(T52*Input!D54)) -> 2.25279 | U53: =SUM((U41*Input!D43)+(U42*Input!D44)+(U43*Input!D45)+(U44*Input!D46)+(U45*Input!D47)+(U46*Input!D48)+(U47*Input!D49)+(U48*Input!D50)+(U49*Input!D51)+(U50*Input!D52)+(U51*Input!D53)+(U52*Input!D54)) -> 2.46097 | W53: =SUM(W41:W52) -> 340.1176

Sheet Details
B1: Backgrounding Cattle Production Cost Worksheet
A3: Assumptions
B5: ="1. Average daily gain (ADG) was assumed to be "&Input!D23&" lbs/day." -> 1. Average daily gain (ADG) was assumed to be 2.5 lbs/day.
B6: ="2. It was assumed the feeder steer weighed in at "&Input!D14&" lbs shrunk weight," -> 2. It was assumed the feeder steer weighed in at 500 lbs shrunk weight,
B7: =" and was raised to "&Input!D16&" lbs ("&Input!D16-(Input!D16*Input!D20/100)&" lbs after "&Input!D20&" % shrink)." -> and was raised to 900 lbs (873 lbs after 3 % shrink).
B8: ="3. Days on feed was "&Input!B32&"." -> 3. Days on feed was 160.
B9: ="4. Investment in facilities and equipment was assumed to handle "&Input!D12&" head." -> 4. Investment in facilities and equipment was assumed to handle 500 head.
B12: A. Operating Costs | J12: Your Cost
B14: 1. Feed Costs
C15: =Summary!A6 -> 1.01 Alfalfa Grass Hay (57.8 % TDN, 13.7 % CP)
F16: =IF(Input!$C$24="Barley Silage",'Feed Rations'!I9,IF(Input!$C$24="Corn Silage",'Feed Rations'!I27,'Feed Rations'!I45)) -> 800 | H16: lbs/feeder
D17: x | F17: =Input!D43 -> 0.06 | H17: $/lb
D18: = | F18: =ROUND(F16*F17,2) -> 48 | H18: /feeder
C20: =Summary!A7 -> 1.02 Corn Silage (65.2 % TDN, 8.7 % CP)
F21: =IF(Input!$C$24="Barley Silage",'Feed Rations'!I10,IF(Input!$C$24="Corn Silage",'Feed Rations'!I28,'Feed Rations'!I46)) -> 3990 | H21: lbs/feeder
D22: x | F22: =Input!D44 -> 0.023 | H22: $/lb
D23: = | F23: =ROUND(F21*F22,2) -> 91.77 | H23: /feeder
C25: =Summary!A8 -> 1.03 Barley Silage (63 % TDN, 11 % CP)
F26: =IF(Input!$C$24="Barley Silage",'Feed Rations'!I11,IF(Input!$C$24="Corn Silage",'Feed Rations'!I29,'Feed Rations'!I47)) -> 0 | H26: lbs/feeder
D27: x | F27: =Input!D45 -> 0.028 | H27: $/lb
D28: = | F28: =ROUND(F26*F27,2) -> 0 | H28: /feeder
C30: =Summary!A9 -> 1.04 Barley Grain (83.1 % TDN, 12.5 % CP)
F31: =IF(Input!$C$24="Barley Silage",'Feed Rations'!I12,IF(Input!$C$24="Corn Silage",'Feed Rations'!I30,'Feed Rations'!I48)) -> 820 | H31: lbs/feeder
D32: x | F32: =Input!D46 -> 0.13 | H32: $/lb
D33: = | F33: =ROUND(F31*F32,2) -> 106.6 | H33: /feeder
C35: =Summary!A10 -> 1.05 Greenfeed
F36: =IF(Input!$C$24="Barley Silage",'Feed Rations'!I13,IF(Input!$C$24="Corn Silage",'Feed Rations'!I31,'Feed Rations'!I49)) -> 0 | H36: lbs/feeder
D37: x | F37: =Input!D47 -> 0.06 | H37: $/lb
D38: = | F38: =ROUND(F36*F37,2) -> 0 | H38: /feeder
C40: =Summary!A11 -> 1.06 Straw
F41: =IF(Input!$C$24="Barley Silage",'Feed Rations'!I14,IF(Input!$C$24="Corn Silage",'Feed Rations'!I32,'Feed Rations'!I50)) -> 0 | H41: lbs/feeder
D42: x | F42: =Input!D48 -> 0.035 | H42: $/lb
D43: = | F43: =ROUND(F41*F42,2) -> 0 | H43: /feeder
C45: =Summary!A12 -> 1.07 32-20% Feedlot Suppl. (61.7%TDN, 35.6%CP)
F46: =IF(Input!$C$24="Barley Silage",'Feed Rations'!I15,IF(Input!$C$24="Corn Silage",'Feed Rations'!I33,'Feed Rations'!I51)) -> 0 | H46: lbs/feeder
D47: x | F47: =Input!D49 -> 0.227 | H47: $/lb
D48: = | F48: =ROUND(F46*F47,2) -> 0 | H48: /feeder
C50: =Summary!A13 -> 1.08 DDGS Corn/Wheat (77 % TDN, 33.9 % CP)
F51: =IF(Input!$C$24="Barley Silage",'Feed Rations'!I16,IF(Input!$C$24="Corn Silage",'Feed Rations'!I34,'Feed Rations'!I52)) -> 130 | H51: lbs/feeder
D52: x | F52: =Input!D50 -> 0.159 | H52: $/lb
D53: = | F53: =ROUND(F51*F52,2) -> 20.67 | H53: /feeder
C55: =Summary!A14 -> 1.09 1:1 Premix
F56: =IF(Input!$C$24="Barley Silage",'Feed Rations'!I17,IF(Input!$C$24="Corn Silage",'Feed Rations'!I35,'Feed Rations'!I53)) -> 0 | H56: lbs/feeder
D57: x | F57: =Input!D51 -> 0.909 | H57: $/lb
D58: = | F58: =ROUND(F56*F57,2) -> 0 | H58: /feeder
C60: =Summary!A15 -> 1.10 2:1 Premix
F61: =IF(Input!$C$24="Barley Silage",'Feed Rations'!I18,IF(Input!$C$24="Corn Silage",'Feed Rations'!I36,'Feed Rations'!I54)) -> 45 | H61: lbs/feeder
D62: x | F62: =Input!D52 -> 0.909 | H62: $/lb
D63: = | F63: =ROUND(F61*F62,2) -> 40.91 | H63: /feeder
C65: =Summary!A16 -> 1.11 Limestone
F66: =IF(Input!$C$24="Barley Silage",'Feed Rations'!I19,IF(Input!$C$24="Corn Silage",'Feed Rations'!I37,'Feed Rations'!I55)) -> 14 | H66: lbs/feeder
D67: x | F67: =Input!D53 -> 0.364 | H67: $/lb
D68: = | F68: =ROUND(F66*F67,2) -> 5.1 | H68: /feeder
C70: =Summary!A17 -> 1.12 Other
F71: =IF(Input!$C$24="Barley Silage",'Feed Rations'!I20,IF(Input!$C$24="Corn Silage",'Feed Rations'!I38,'Feed Rations'!I56)) -> 0 | H71: lbs/feeder
D72: x | F72: =Input!D54 -> 0 | H72: $/lb
D73: = | F73: =ROUND(F71*F72,2) -> 0 | H73: /feeder
B75: 2. Other Operating Costs
C76: 2.01 Feeder Cattle Cost
C77: Commission | F77: =Input!D63 -> 5 | H77: /feeder
C78: Insurance | F78: =Input!D65 -> 1.75 | H78: /feeder
C80: Trucking-in | F80: =Input!D64 -> 1.7 | H80: /cwt
D81: x | F81: =Input!D14 -> 500 | H81: lbs/feeder
D82: ÷ | F82: 100 | H82: lbs/cwt
D83: = | F83: =ROUND(F80*F81/F82,2) -> 8.5 | H83: /feeder
C85: Feeder | F85: =Input!D14 -> 500 | H85: lbs/feeder
D86: x | F86: =Input!D15 -> 390 | H86: /cwt
D87: ÷ | F87: 100 | H87: lbs/cwt
D88: = | F88: =ROUND(F85/100*F86,2) -> 1950 | H88: /feeder
C90: Total | D90: = | F90: =ROUND(F77+F78+F83+F88,2) -> 1965.25 | H90: /feeder
C92: 2.02 Straw
F93: =Input!D68 -> 4 | H93: lbs/feeder/day
D94: x | F94: =Input!B32 -> 160 | H94: days on feed
D95: x | F95: =Input!D69 -> 70 | H95: /ton
D96: = | F96: =ROUND((F93*F94)*(F95/2000),2) -> 22.4 | H96: /feeder
C98: 2.03 Veterinary Medicine & Supplies
C99: Cattle Medication
F100: =Input!D73 -> 5 | H100: IBR,BVD,PI3,BRSV,Pasteurella
D101: + | F101: =Input!D74 -> 0.5 | H101: Vitamin A-D
D102: + | F102: =Input!D75 -> 0.72 | H102: External & Internal Parasites
D103: + | F103: =Input!D76 -> 1.26 | H103: Blackleg & Haemophilus
D104: + | F104: =Input!D77 -> 2 | H104: Growth Implants
D105: + | F105: =Input!D78 -> 15 | H105: Antibiotics
D106: = | F106: =SUM(F100:F105) -> 24.48 | H106: /feeder
C108: Herd Health Program
C109: Professional Services
F110: =Input!D83 -> 160 | H110: /hour charge
D111: x | F111: =Input!D82 -> 3 | H111: hours
D112: ÷ | F112: =Input!D12 -> 500 | H112: feeder cattle
D113: = | F113: =ROUND(F110*F111/F112,2) -> 0.96 | H113: /feeder
C115: Transportation Costs
F116: =Input!D86 -> 1 | H116: /km charge
D117: x | F117: =Input!D85 -> 80 | H117: kilometres
D118: x | F118: =Input!D87 -> 2 | H118: visits
D119: ÷ | F119: =Input!D12 -> 500 | H119: feeder cattle
D120: = | F120: =ROUND(F116*F117*F118/F119,2) -> 0.32 | H120: /feeder
C122: Total | D122: = | F122: =ROUND(F106+F113+F120,2) -> 25.76 | H122: /feeder
C124: 2.04 Annual Fuel & Repair Costs
C125: Machinery fuel cost
F126: =Input!D91 -> 120 | H126: PTO hp
D127: ÷ | F127: 2.5 | H127: avg HP required
D128: x | F128: 0.1665576 | H128: litres fuel/hour/hp
D129: x | F129: =Input!D93 -> 1.5 | H129: hours per day
D130: x | F130: =Input!D92 -> 1.4 | H130: diesel / litre
D131: x | F131: =Input!B32 -> 160 | H131: days on feed
F132: =IF(F131="ERROR","ERROR",ROUND(((F126/F127)*F128*F129*F130*F131),2)) -> 2686.24 | H132: annual fuel cost
D133: ÷ | F133: =Input!D12 -> 500 | H133: feeders
D134: = | F134: =SUM(F132/F133) -> 5.37248 | H134: /feeder
C135: Machinery repair & maintenance
F136: =SUM(Input!D153+Input!D154) -> 112500 | H136: machinery capital cost
D137: x | F137: =Input!D94 -> 1.2 | H137: % repair rate
D138: = | F138: =SUM(F136*(F137/100)) -> 1350 | H138: oil, repairs & maintenance
D139: ÷ | F139: =Input!D12 -> 500 | H139: feeders
D140: = | F140: =SUM(F138/F139) -> 2.7 | H140: /feeder
C141: Building repair & maintenance
F142: =Input!D150-Input!D149 -> 62600 | H142: building capital cost
D143: x | F143: =Input!D95 -> 2.2 | H143: % repair rate
D144: = | F144: =SUM(F142*(F143/100)) -> 1377.2 | H144: oil, repairs & maintenance
D145: ÷ | F145: =Input!D12 -> 500 | H145: feeders
D146: = | F146: =SUM(F144/F145) -> 2.7544 | H146: /feeder
D148: = | F148: =SUM(F146+F140+F134) -> 10.82688 | H148: /feeder
C150: 2.05 Utilities
F151: =SUM(Input!D101:D102) -> 1696.5024 | H151: cost/year
D152: ÷ | F152: =Input!D12 -> 500 | H152: feeder cattle
D153: = | F153: =ROUND((F151)/F152,2) -> 3.39 | H153: /feeder
C155: 2.06 Feeder Selling Cost
C156: Trucking
D157: Calves | F157: =Input!D106 -> 75 | H157: miles
D158: x | F158: =Input!D107 -> 7 | H158: /loaded mile
F159: =Input!D12-((Input!D13/100)*Input!D12) -> 490 | H159: feeders
D160: = | F160: =ROUNDUP((F159)/Input!D109,0) -> 9 | H160: loads
D161: ÷ | F161: =Input!D12 -> 500 | H161: feeders
D162: = | F162: =SUM(F157*F158*F160)/F161 -> 9.45 | H162: /feeder
C164: MBP levy, WLPIP, selling commission
D165: + | F165: =Input!D112 -> 5.5 | H165: MBP Levy
D166: + | F166: =Input!D19*Breakeven!F30/100 -> 0 | H166: WLPIP Insurance Premium
D167: + | F167: =Input!D113 -> 20 | H167: commission
D168: = | F168: =+F165+F167+F166 -> 25.5 | H168: /feeder
C170: Total | D170: = | F170: =F162+F168 -> 34.95 | H170: /feeder
C172: 2.07 Insurance
F173: =Input!D156 -> 192600 | H173: building & equipment investment
D174: x | F174: =Input!D126 -> 0.4 | H174: /$100 capital
D175: ÷ | F175: 100 | H175: /$100
D176: ÷ | F176: =Input!D12 -> 500 | H176: feeder cattle
D177: = | F177: =ROUND(F173*F174/F175/F176,2) -> 1.54 | H177: /feeder
F179: =ROUND((((Input!D14*Input!D15/100)+(Input!D16*Input!D17/100))/2)*Input!D12,2) -> 1230000 | H179: herd investment
D180: x | F180: =Input!D125 -> 0 | H180: /$100 capital
D181: ÷ | F181: 100 | H181: /$100
D182: ÷ | F182: =Input!D12 -> 500 | H182: feeder cattle
D183: = | F183: =ROUND(F179*F180/F181/F182,2) -> 0 | H183: /feeder
F185: =Input!D127 -> 49 | H185: additional coverage for liability
D186: ÷ | F186: =Input!D12 -> 500 | H186: feeder cattle
D187: = | F187: =F185/F186 -> 0.098 | H187: /feeder
C189: Total | D189: = | F189: =ROUND(F177+F183+F187,2) -> 1.64 | H189: /feeder
C191: 2.08 Manure Removal
E192: = | F192: =Input!B32 -> 160 | H192: days on feed
E193: x | F193: =Input!D118 -> 0.024 | H193: m3/feeder/day
E194: = | F194: =IF(F192="ERROR","ERROR",SUM(F192*F193)) -> 3.84 | H194: m3 manure volume
E195: x | F195: =Input!D119 -> 75 | H195: % volume shrink
E196: x | F196: 1.30795 | H196: yd3 per m3
E197: x | F197: =Input!D120 -> 15 | H197: yd3 manure removal cost
E198: = | F198: =IF(F192="ERROR","ERROR",SUM(F194*(1-(F195/100))*F196*F197)) -> 18.83448 | H198: /feeder
C200: 2.09 Barn & Office Supplies
F201: =Input!D130 -> 600 | H201: total barn expenses
D202: ÷ | F202: =Input!D12 -> 500 | H202: feeder cattle
D203: = | F203: =ROUND(F201/F202,2) -> 1.2 | H203: /feeder
C205: 2.10 Death Loss
F206: =F90 -> 1965.25 | H206: feeder cattle cost
D207: + | F207: =SUM(Summary!F18:F28) -> 2397.30136 | H207: maximum value
D208: - | F208: =Summary!F25 -> 34.95 | H208: selling costs
D209: ÷ | F209: 2 | H209: average
D210: x | F210: =Input!D13 -> 2 | H210: % mortality rate
D211: = | F211: =ROUND(((F206+(F207-F208))/F209)*F210/100,2) -> 43.28 | H211: /feeder
C213: 2.11 Operating Interest
C214: (Operating interest is charged on one half the subtotal operating costs)
F216: =F90 -> 1965.25 | H216: feeder cost
D217: + | F217: =(Summary!F18+SUM(Summary!F21:F29))/2 -> 237.66568 | H217: ½ of feed & other costs
D218: x | F218: =Input!D132 -> 9 | H218: % operating interest
D219: x | F219: =Input!B32 -> 160 | H219: days on feed
D220: ÷ | F220: 365 | H220: days /year
D221: = | F221: =ROUND(((F216+F217)*(F218)*(F219/F220/100)),2) -> 86.91 | H221: /feeder
B223: Capital Costs
C225: Buildings,Corrals & Water System
C226: Windbreak fence | H226: =Input!D140 -> 6300
C227: Pens | H227: =Input!D141 -> 5300
C228: Handling Facilities | H228: =Input!D142 -> 7500
C229: Waterers | H229: =Input!D143 -> 6000
C230: Gates | H230: =Input!D144 -> 2000
C231: Feeders | H231: =Input!D145 -> 1500
C232: Bunk Feeders | H232: =Input!D146 -> 21000
C233: Well & Pressure System | H233: =Input!D147 -> 8000
C234: Grain Bin | H234: =Input!D148 -> 5000
C235: Landscaping | H235: =Input!D149 -> 17500
C236: Total | H236: =SUM(H226:H235) -> 80100
C238: Machinery & Equipment
C239: Tractor & Loader | H239: =Input!D153 -> 52500
C240: Miscellaneous | H240: =Input!D154 -> 60000
C241: Total | H241: =SUM(H239:H240) -> 112500
C243: Total Investment | H243: =H236+H241 -> 192600
B246: B. Fixed Costs
... 34 more rows

Sheet Breakeven
A2: Breakeven Calculations
A4: Cost per lb of gain sold (shrunk weight)
B5: Feed Costs | F5: =Summary!F18 -> 313.05 | H5: feed cost
E6: ÷ | F6: =ROUND((Input!$D$16-(Input!$D$16*Input!$D$20/100))-(Input!$D$14-(Input!$D$14*Input!$D$21/100)),0) -> 373 | H6: lbs gained weight
E7: = | F7: =F5/F6 -> 0.8392761394 | H7: /lb (gain sold)
B9: Operating Costs | F9: =Summary!F32 -> 2527.49 | H9: operating costs
E10: - | F10: =Details!$F$88 -> 1950 | H10: feeder cost
E11: ÷ | F11: =ROUND((Input!$D$16-(Input!$D$16*Input!$D$20/100))-(Input!$D$14-(Input!$D$14*Input!$D$21/100)),0) -> 373 | H11: lbs gained weight
E12: = | F12: =(F9-F10)/F11 -> 1.548230563 | H12: /lb (gain sold)
B14: Operating & Labour Costs | F14: =Summary!F32+Summary!F43 -> 2554.49 | H14: operating costs
E15: - | F15: =F10 -> 1950 | H15: feeder cost
E16: ÷ | F16: =F11 -> 373 | H16: lbs gained weight
E17: = | F17: =(F14-F15)/F16 -> 1.620616622 | H17: /lb (gain sold)
B19: Operating & Fixed | F19: =Summary!F41 -> 2561.62 | H19: oper. & fixed costs
E20: - | F20: =Details!$F$88 -> 1950 | H20: feeder cost
E21: ÷ | F21: =ROUND((Input!$D$16-(Input!$D$16*Input!$D$20/100))-(Input!$D$14-(Input!$D$14*Input!$D$21/100)),0) -> 373 | H21: lbs gained weight
E22: = | F22: =(F19-F20)/F21 -> 1.639731903 | H22: /lb (gain sold)
B24: Total Costs | F24: =Summary!F44 -> 2588.62 | H24: total costs
E25: - | F25: =Details!$F$88 -> 1950 | H25: feeder cost
E26: ÷ | F26: =ROUND((Input!$D$16-(Input!$D$16*Input!$D$20/100))-(Input!$D$14-(Input!$D$14*Input!$D$21/100)),0) -> 373 | H26: lbs gained weight
E27: = | F27: =(F24-F25)/F26 -> 1.712117962 | H27: /lb (gain sold)
A28: Breakeven selling price (shrunk weight)
B29: Operating Costs | F29: =Summary!F32 -> 2527.49 | H29: operating costs
E30: ÷ | F30: =Input!$D$16-(Input!$D$16*Input!$D$20/100) -> 873 | H30: lbs shrunk weight
E31: = | F31: =F29/F30 -> 2.895177549 | H31: /lb
B33: Operating & Labour Costs | F33: =Summary!F32+Summary!F43 -> 2554.49 | H33: operating & labour
E34: ÷ | F34: =F30 -> 873 | H34: lbs shrunk weight
E35: = | F35: =F33/F34 -> 2.926105384 | H35: /lb
B37: Operating & Fixed | F37: =Summary!F41 -> 2561.62 | H37: oper. & fixed costs
E38: ÷ | F38: =Input!$D$16-(Input!$D$16*Input!$D$20/100) -> 873 | H38: lbs shrunk weight
E39: = | F39: =F37/F38 -> 2.934272623 | H39: /lb
B41: Total Costs | F41: =Summary!F44 -> 2588.62 | H41: total costs
E42: ÷ | F42: =Input!$D$16-(Input!$D$16*Input!$D$20/100) -> 873 | H42: lbs shrunk weight
E43: = | F43: =F41/F42 -> 2.965200458 | H43: /lb
A45: Breakeven purchase price (shrunk weight)
B46: Operating Costs | F46: =Input!$D$16-(Input!$D$16*Input!$D$20/100) -> 873 | H46: lbs shrunk weight
E47: x | F47: =Input!$D$17 -> 330 | H47: $/cwt selling price
E48: = | F48: =F46*F47/100 -> 2880.9 | H48: income
E49: - | F49: =Summary!F32-Details!$F$88 -> 577.49 | H49: operating less feeder cost
E50: ÷ | F50: =Input!$D$14 -> 500 | H50: lbs purchase weight
E51: = | F51: =(F48-F49)/F50 -> 4.60682 | H51: /lb
B53: Operating & Labour Costs | F53: =F46 -> 873 | H53: lbs shrunk weight
E54: x | F54: =F47 -> 330 | H54: $/cwt selling price
E55: = | F55: =F48 -> 2880.9 | H55: income
E56: - | F56: =(Summary!F32+Summary!F43)-Details!F88 -> 604.49 | H56: operating less feeder cost
E57: ÷ | F57: =F50 -> 500 | H57: lbs purchase weight
E58: = | F58: =(F55-F56)/F57 -> 4.55282 | H58: /lb
B60: Operating & Fixed | F60: =Input!$D$16-(Input!$D$16*Input!$D$20/100) -> 873 | H60: lbs shrunk weight
E61: x | F61: =Input!$D$17 -> 330 | H61: $/cwt selling price
E62: = | F62: =F60*F61/100 -> 2880.9 | H62: income
E63: - | F63: =Summary!F41-Details!$F$88 -> 611.62 | H63: op. & fixed less feeder cost
E64: ÷ | F64: =Input!$D$14 -> 500 | H64: lbs purchase weight
E65: = | F65: =(F62-F63)/F64 -> 4.53856 | H65: /lb
B67: Total Costs | F67: =Input!$D$16-(Input!$D$16*Input!$D$20/100) -> 873 | H67: lbs shrunk weight
E68: x | F68: =Input!$D$17 -> 330 | H68: $/cwt selling price
E69: = | F69: =F67*F68/100 -> 2880.9 | H69: income
E70: - | F70: =Summary!F44-Details!$F$88 -> 638.62 | H70: total less feeder cost
E71: ÷ | F71: =Input!$D$14 -> 500 | H71: lbs purchase weight
E72: = | F72: =(F69-F70)/F71 -> 4.48456 | H72: /lb
A74: Profitability and Breakeven Analysis:
A75: ="Gross Revenue = Shrunk weight (lbs) x $/lb price (eg. "&F46&" x $"&TEXT(F47/100,"0.00")&"/lb = $"&TEXT(F48,"0.00")&")" -> Gross Revenue = Shrunk weight (lbs) x $/lb price (eg. 873 x $3.30/lb = $2880.90)
A76: ="Return on Investment (ROI) = (Gross Revenue - Total Cost) / Total Cost (eg. ($"&TEXT(Summary!F49,"0.00")&" - $"&TEXT(Summary!F44,"0.00")&") / $"&TEXT(Summary!F44,"0.00")&" = "&TEXT(100*Summary!F68,"0.0")&"%" -> Return on Investment (ROI) = (Gross Revenue - Total Cost) / Total Cost (eg. ($2880.90 - $2588.62) / $2588.62 = 11.3%
A78: ="Return on Asset (ROA) = (Margin Over Operating - Labour - Building Depreciation - Machinery Depreciation) / (Building, Machinery & Equipment Investment / Herd Size) (eg. ($"&TEXT(Summary!H63,"0.00")&" - $"&TEXT(Summary!F43,"0.00")&" - $"&TEXT(Summary!F35,"0.00")&" - $"&TEXT(Summary!F36,"0.00")&") / ($"&TEXT(Input!D156,"#,###")&" / "&Input!D12&") = "&TEXT(100*Summary!F69,"0.0")&"%" -> Return on Asset (ROA) = (Margin Over Operating - Labour - Building Depreciation - Machinery Depreciation) / (Building, Machinery & Equipment Investment / Herd Size) (eg. ($353.41 - $27.00 - $7.21 - $18.00) / ($192,600 / 500) = 78.2%
J82: September, 2023

Sheet Facilities
C1: Backgrounding Feedlot Facilities

Sheet Chart data (HIDE) (hidden)
A1: 2023 Beef Background Calves - Total Production Costs (cost/feeder)
A2: Feed Cost | B2: =Summary!F18 -> 313.05 | C2: =SUM(B2/$B$8) -> 0.1209331613
A3: Feeder Cost | B3: =Summary!F20 -> 1965.25 | C3: 0.7591882934
A4: Other Operating Cost | B4: =Summary!F32-Summary!F20-Summary!F18 -> 249.19 | C4: 0.09626364627
A5: Fixed Cost - Depreciation | B5: =Summary!F35+Summary!F36 -> 25.21 | C5: 0.009738779736
A6: Fixed Cost - Investment | B6: =SUM(Summary!F38+Summary!F39) -> 8.92 | C6: 0.003445851458
A7: Labour | B7: =SUM(Summary!F43) -> 27 | C7: 0.01043026786
B8: =SUM(B2:B7) -> 2588.62
A10: 2023 Beef Background Calves - Other Operating Costs (cost/feeder)
A11: Straw | B11: =Summary!F21 -> 22.4
A12: Veterinary Medicine & Supplies | B12: =Summary!F22 -> 25.76
A13: Fuel, Maintenance & Repairs | B13: =Summary!F23 -> 10.82688
A14: Utilities | B14: =Summary!F24 -> 3.39
A15: Feeder Selling Cost | B15: =Summary!F25 -> 34.95
A16: Insurance | B16: =Summary!F26 -> 1.64
A17: Manure Removal | B17: =Summary!F27 -> 18.83448
A18: Barn & Office Supplies | B18: =Summary!F28 -> 1.2
A19: Death Loss | B19: =Summary!F29 -> 43.28
A20: Operating Interest | B20: =Summary!F31 -> 86.91
B21: =SUM(B11:B20) -> 249.19136
A24: ="2023 Beef Backgrounding - Costs Not Covered ("&Input!D16&" lb. steers)" -> 2023 Beef Backgrounding - Costs Not Covered (900 lb. steers)
A25: Calf Price | B25: Gross revenue | C25: ="Operating Costs = $"&ROUND(Summary!F32,0) -> Operating Costs = $2527 | D25: ="Fixed Costs = $"&ROUND(Summary!F40,0) -> Fixed Costs = $34 | E25: ="Labour Cost = $"&ROUND(Summary!F43,0) -> Labour Cost = $27 | F25: Total | I25: =C25 -> Operating Costs = $2527 | J25: =D25 -> Fixed Costs = $34 | K25: =A25 -> Calf Price
A27: =SUM(A28+2) -> 340 | B27: =SUM((A27/100)*(Input!$D$39+Input!$D$14)) -> 2968.2 | C27: =IF(Summary!$F$32-B27<0,0,SUM(Summary!$F$32-B27)) -> 0 | D27: =IF(Summary!$F$32+Summary!$F$40-B27<0,0,SUM(Summary!$F$32+Summary!$F$40-B27-C27)) -> 0 | E27: =IF(Summary!$F$32+Summary!$F$40+Summary!$F$43-B27<0,0,SUM(Summary!$F$32+Summary!$F$40+Summary!$F$43-B27-C27-D27)) -> 0 | F27: =SUM(C27:E27) -> 0 | I27: =C27 -> 0 | J27: 0 | K27: =A27 -> 340 | M27: ="Market prices of $"&ROUND(Summary!H57,0)&"/cwt and lower do not cover both operating and fixed costs. This can indicate the potential need for WLPIP coverage and is an important step in Risk Management Planning)." -> Market prices of $293/cwt and lower do not cover both operating and fixed costs. This can indicate the potential need for WLPIP coverage and is an important step in Risk Management Planning).
A28: =SUM(A29+2) -> 338 | B28: =SUM((A28/100)*(Input!$D$39+Input!$D$14)) -> 2950.74 | C28: =IF(Summary!$F$32-B28<0,0,SUM(Summary!$F$32-B28)) -> 0 | D28: =IF(Summary!$F$32+Summary!$F$40-B28<0,0,SUM(Summary!$F$32+Summary!$F$40-B28-C28)) -> 0 | E28: =IF(Summary!$F$32+Summary!$F$40+Summary!$F$43-B28<0,0,SUM(Summary!$F$32+Summary!$F$40+Summary!$F$43-B28-C28-D28)) -> 0 | F28: 0 | I28: 0 | J28: 0 | K28: 338
A29: =SUM(A30+2) -> 336 | B29: =SUM((A29/100)*(Input!$D$39+Input!$D$14)) -> 2933.28 | C29: =IF(Summary!$F$32-B29<0,0,SUM(Summary!$F$32-B29)) -> 0 | D29: =IF(Summary!$F$32+Summary!$F$40-B29<0,0,SUM(Summary!$F$32+Summary!$F$40-B29-C29)) -> 0 | E29: =IF(Summary!$F$32+Summary!$F$40+Summary!$F$43-B29<0,0,SUM(Summary!$F$32+Summary!$F$40+Summary!$F$43-B29-C29-D29)) -> 0 | F29: 0 | I29: 0 | J29: 0 | K29: 336
A30: =SUM(A31+2) -> 334 | B30: =SUM((A30/100)*(Input!$D$39+Input!$D$14)) -> 2915.82 | C30: =IF(Summary!$F$32-B30<0,0,SUM(Summary!$F$32-B30)) -> 0 | D30: =IF(Summary!$F$32+Summary!$F$40-B30<0,0,SUM(Summary!$F$32+Summary!$F$40-B30-C30)) -> 0 | E30: =IF(Summary!$F$32+Summary!$F$40+Summary!$F$43-B30<0,0,SUM(Summary!$F$32+Summary!$F$40+Summary!$F$43-B30-C30-D30)) -> 0 | F30: 0 | I30: 0 | J30: 0 | K30: 334
A31: =SUM(A32+2) -> 332 | B31: =SUM((A31/100)*(Input!$D$39+Input!$D$14)) -> 2898.36 | C31: =IF(Summary!$F$32-B31<0,0,SUM(Summary!$F$32-B31)) -> 0 | D31: =IF(Summary!$F$32+Summary!$F$40-B31<0,0,SUM(Summary!$F$32+Summary!$F$40-B31-C31)) -> 0 | E31: =IF(Summary!$F$32+Summary!$F$40+Summary!$F$43-B31<0,0,SUM(Summary!$F$32+Summary!$F$40+Summary!$F$43-B31-C31-D31)) -> 0 | F31: 0 | I31: 0 | J31: 0 | K31: 332
A32: =ROUND(Input!D17,0) -> 330 | B32: =SUM((A32/100)*(Input!$D$39+Input!$D$14)) -> 2880.9 | C32: =IF(Summary!$F$32-B32<0,0,SUM(Summary!$F$32-B32)) -> 0 | D32: =IF(Summary!$F$32+Summary!$F$40-B32<0,0,SUM(Summary!$F$32+Summary!$F$40-B32-C32)) -> 0 | E32: =IF(Summary!$F$32+Summary!$F$40+Summary!$F$43-B32<0,0,SUM(Summary!$F$32+Summary!$F$40+Summary!$F$43-B32-C32-D32)) -> 0 | F32: 0 | I32: 0 | J32: 0 | K32: 330
A33: =SUM(A32-2) -> 328 | B33: =SUM((A33/100)*(Input!$D$39+Input!$D$14)) -> 2863.44 | C33: =IF(Summary!$F$32-B33<0,0,SUM(Summary!$F$32-B33)) -> 0 | D33: =IF(Summary!$F$32+Summary!$F$40-B33<0,0,SUM(Summary!$F$32+Summary!$F$40-B33-C33)) -> 0 | E33: =IF(Summary!$F$32+Summary!$F$40+Summary!$F$43-B33<0,0,SUM(Summary!$F$32+Summary!$F$40+Summary!$F$43-B33-C33-D33)) -> 0 | F33: 0 | I33: 0 | J33: 0 | K33: 328
A34: 326 | B34: =SUM((A34/100)*(Input!$D$39+Input!$D$14)) -> 2845.98 | C34: =IF(Summary!$F$32-B34<0,0,SUM(Summary!$F$32-B34)) -> 0 | D34: =IF(Summary!$F$32+Summary!$F$40-B34<0,0,SUM(Summary!$F$32+Summary!$F$40-B34-C34)) -> 0 | E34: =IF(Summary!$F$32+Summary!$F$40+Summary!$F$43-B34<0,0,SUM(Summary!$F$32+Summary!$F$40+Summary!$F$43-B34-C34-D34)) -> 0 | F34: 0 | I34: 0 | J34: 0 | K34: 326
A35: 324 | B35: =SUM((A35/100)*(Input!$D$39+Input!$D$14)) -> 2828.52 | C35: =IF(Summary!$F$32-B35<0,0,SUM(Summary!$F$32-B35)) -> 0 | D35: =IF(Summary!$F$32+Summary!$F$40-B35<0,0,SUM(Summary!$F$32+Summary!$F$40-B35-C35)) -> 0 | E35: =IF(Summary!$F$32+Summary!$F$40+Summary!$F$43-B35<0,0,SUM(Summary!$F$32+Summary!$F$40+Summary!$F$43-B35-C35-D35)) -> 0 | F35: 0 | I35: 0 | J35: 0 | K35: 324
A36: 322 | B36: =SUM((A36/100)*(Input!$D$39+Input!$D$14)) -> 2811.06 | C36: =IF(Summary!$F$32-B36<0,0,SUM(Summary!$F$32-B36)) -> 0 | D36: =IF(Summary!$F$32+Summary!$F$40-B36<0,0,SUM(Summary!$F$32+Summary!$F$40-B36-C36)) -> 0 | E36: =IF(Summary!$F$32+Summary!$F$40+Summary!$F$43-B36<0,0,SUM(Summary!$F$32+Summary!$F$40+Summary!$F$43-B36-C36-D36)) -> 0 | F36: 0 | I36: 0 | J36: 0 | K36: 322
A37: 320 | B37: =SUM((A37/100)*(Input!$D$39+Input!$D$14)) -> 2793.6 | C37: =IF(Summary!$F$32-B37<0,0,SUM(Summary!$F$32-B37)) -> 0 | D37: =IF(Summary!$F$32+Summary!$F$40-B37<0,0,SUM(Summary!$F$32+Summary!$F$40-B37-C37)) -> 0 | E37: =IF(Summary!$F$32+Summary!$F$40+Summary!$F$43-B37<0,0,SUM(Summary!$F$32+Summary!$F$40+Summary!$F$43-B37-C37-D37)) -> 0 | F37: 0 | I37: 0 | J37: 0 | K37: 320
A38: 318 | B38: =SUM((A38/100)*(Input!$D$39+Input!$D$14)) -> 2776.14 | C38: =IF(Summary!$F$32-B38<0,0,SUM(Summary!$F$32-B38)) -> 0 | D38: =IF(Summary!$F$32+Summary!$F$40-B38<0,0,SUM(Summary!$F$32+Summary!$F$40-B38-C38)) -> 0 | E38: =IF(Summary!$F$32+Summary!$F$40+Summary!$F$43-B38<0,0,SUM(Summary!$F$32+Summary!$F$40+Summary!$F$43-B38-C38-D38)) -> 0 | F38: 0 | I38: 0 | J38: 0 | K38: 318

Sheet More...Breakeven (HIDE) (hidden)
A1: Estimated Breakeven Canadian Dollar & US Futures Price Analysis*
A2: Feeder Selling Price (WLPIP insured value) | F2: =Input!D17 -> 330 | G2: /cwt
A3: Estimated Feeder Cattle Basis (5 yr. Avg.) | F3: 19.43 | G3: /cwt
A4: Canadian Dollar | F4: 0.755 | G4: /USD
A5: Estimated US Futures | F5: 123 | G5: /cwt
F7: Breakeven CDN | I7: Breakeven US
F8: =" Dollar @ $"&F5&"/cwt." -> Dollar @ $123/cwt. | I8: =" Futures Price" -> Futures Price
F9: ="Est. US Futures Price" -> Est. US Futures Price | I9: ="@ $"&TEXT(F4,"#.####")&" CDN Dollar." -> @ $.755 CDN Dollar.
A10: Operating Costs | F10: =F26 -> 0.3981255667 | I10: =F64 -> 233.2555549
A11: Operating Costs & Labour | F11: =F36 -> 0.3941795532 | I11: =F71 -> 235.5906065
A12: Operating & Fixed Costs | F12: =F46 -> 0.3931505348 | I12: =F78 -> 236.207233
A13: Total Costs | F13: =F56 -> 0.3893020483 | I13: =F85 -> 238.5422846
A15: Breakeven Calculation Worksheet
A17: Breakeven Canadian Dollar (shrunk weight)
B18: Operating Costs | F18: =F5 -> 123 | H18: Estimated US Futures
E19: ÷
F20: =Summary!F32 -> 2527.49 | H20: operating costs
E21: ÷ | F21: =Input!$D$16-(Input!$D$16*Input!$D$20/100) -> 873 | H21: lbs shrunk weight
E22: x | F22: 100 | H22: cwt
E23: + | F23: =F3 -> 19.43 | H23: basis
E24: = | F24: =SUM((F20/F21)*F22)+F23 -> 308.9477549 | H24: /cwt cost
E26: = | F26: =SUM(F18/F24) -> 0.3981255667 | H26: /USD
B28: Operating & Labour Costs | F28: =F5 -> 123 | H28: Estimated US Futures
E29: ÷
F30: =Summary!F32+Summary!F43 -> 2554.49 | H30: operating & labour
E31: ÷ | F31: =Input!$D$16-(Input!$D$16*Input!$D$20/100) -> 873 | H31: lbs shrunk weight
E32: x | F32: 100 | H32: cwt
E33: + | F33: =F3 -> 19.43 | H33: basis
E34: = | F34: =SUM((F30/F31)*F32)+F33 -> 312.0405384 | H34: /cwt cost
E36: = | F36: =SUM(F28/F34) -> 0.3941795532 | H36: /USD
B38: Operating & Fixed | F38: =F5 -> 123 | H38: Estimated US Futures
E39: ÷
F40: =Summary!F41 -> 2561.62 | H40: oper. & fixed costs
E41: ÷ | F41: =Input!$D$16-(Input!$D$16*Input!$D$20/100) -> 873 | H41: lbs shrunk weight
E42: x | F42: 100 | H42: cwt
E43: + | F43: =F23 -> 19.43 | H43: basis
E44: = | F44: =SUM((F40/F41)*F42)+F43 -> 312.8572623 | H44: /cwt cost
E46: = | F46: =SUM(F38/F44) -> 0.3931505348 | H46: /USD
B48: Total Costs | F48: =F5 -> 123 | H48: Estimated US Futures
E49: ÷
F50: =Summary!F44 -> 2588.62 | H50: total costs
E51: ÷ | F51: =Input!$D$16-(Input!$D$16*Input!$D$20/100) -> 873 | H51: lbs shrunk weight
E52: x | F52: 100 | H52: cwt
E53: + | F53: =F33 -> 19.43 | H53: basis
E54: = | F54: =SUM((F50/F51)*F52)+F53 -> 315.9500458 | H54: /cwt cost
E56: = | F56: =SUM(F48/F54) -> 0.3893020483 | H56: /USD
A58: Breakeven US Futures (shrunk weight)
B59: Operating Costs | F59: =Summary!F32 -> 2527.49 | H59: operating costs
E60: ÷ | F60: =Input!$D$16-(Input!$D$16*Input!$D$20/100) -> 873 | H60: lbs shrunk weight
E61: x | F61: 100 | H61: cwt
E62: + | F62: =F3 -> 19.43 | H62: basis
E63: x | F63: =F4 -> 0.755 | H63: CDN Dollar value
E64: = | F64: =SUM(((F59/F60)*F61)+F62)*F63 -> 233.2555549 | H64: /cwt (USD)
B66: Operating & Labour Costs | F66: =Summary!F32+Summary!F43 -> 2554.49 | H66: operating & labour
E67: ÷ | F67: =Input!$D$16-(Input!$D$16*Input!$D$20/100) -> 873 | H67: lbs shrunk weight
E68: x | F68: 100 | H68: cwt
E69: + | F69: =F3 -> 19.43 | H69: basis
E70: x | F70: =F4 -> 0.755 | H70: CDN Dollar value
E71: = | F71: =SUM(((F66/F67)*F68)+F69)*F70 -> 235.5906065 | H71: /cwt (USD)
B73: Operating & Fixed | F73: =Summary!F41 -> 2561.62 | H73: oper. & fixed costs
E74: ÷ | F74: =Input!$D$16-(Input!$D$16*Input!$D$20/100) -> 873 | H74: lbs shrunk weight
E75: x | F75: 100 | H75: cwt
E76: + | F76: =F3 -> 19.43 | H76: basis
E77: x | F77: =F4 -> 0.755 | H77: CDN Dollar value
E78: = | F78: =SUM(((F73/F74)*F75)+F76)*F77 -> 236.207233 | H78: /cwt (USD)
B80: Total Costs | F80: =Summary!F44 -> 2588.62 | H80: oper. & fixed costs
E81: ÷ | F81: =Input!$D$16-(Input!$D$16*Input!$D$20/100) -> 873 | H81: lbs shrunk weight
E82: x | F82: 100 | H82: cwt
E83: + | F83: =F3 -> 19.43 | H83: basis
E84: x | F84: =F4 -> 0.755 | H84: CDN Dollar value
E85: = | F85: =SUM(((F80/F81)*F82)+F83)*F84 -> 238.5422846 | H85: /cwt (USD)
A87: Created and maintained by | J87: September, 2016
A88: For more information, contact your local
A89: Benjamin Hamm | E89: Roy Arnott | I89: Bob Gwyer
A90: Farm Management Specialist | E90: Farm Management Specialist | I90: Farm Management Specialist
A92: Greg Fedak | E92: Wayne Tomlinson | I92: Ray Bittner
A93: Farm Management Specialist | E93: Extension Veterinarian | I93: Farm Production Extension
